Department family,Entity,Date,Expense type,Expense area,Supplier,Transaction number,Amount,Description
MINISTRY OF JUSTICE,0290 LAA,2/1/2017,Legal Help,LEGAL AID FUND,CJCH SOLICITORS,1142829:146390299,27012,Legal Aid - Legal Help
MINISTRY OF JUSTICE,0290 LAA,2/1/2017,Lower Crime,LEGAL AID FUND,BREYDONS SOLICITORS LTD,1142838:146391680,32965,Legal Aid - Lower Crime
MINISTRY OF JUSTICE,0290 LAA,2/1/2017,Lower Crime,LEGAL AID FUND,VHS FLETCHERS,1142850:146391564,29200,Legal Aid - Lower Crime
MINISTRY OF JUSTICE,0290 LAA,2/1/2017,Legal Help,LEGAL AID FUND,BANKFIELD HEATH SOLICITORS,1142867:146390199,25020,Legal Aid - Legal Help
MINISTRY OF JUSTICE,0290 LAA,2/1/2017,Legal Help,LEGAL AID FUND,VIRGO SOLICITORS LTD,1142886:146390973,34200,Legal Aid - Legal Help
MINISTRY OF JUSTICE,0290 LAA,2/1/2017,Legal Help,LEGAL AID FUND,BARNES HARRILD & DYER,1142889:146390214,35496,Legal Aid - Legal Help
MINISTRY OF JUSTICE,0290 LAA,2/1/2017,Lower Crime,LEGAL AID FUND,REEDS SOLICITORS LTD,1142955:146392337,42288,Legal Aid - Lower Crime
MINISTRY OF JUSTICE,0290 LAA,2/1/2017,Lower Crime,LEGAL AID FUND,MURRAY BRANKIN,1143013:146391547,30000,Legal Aid - Lower Crime
MINISTRY OF JUSTICE,0290 LAA,2/1/2017,Lower Crime,LEGAL AID FUND,CONNOR ROSS-BROWN SOLICITORS,1143051:146391549,35000,Legal Aid - Lower Crime
MINISTRY OF JUSTICE,0290 LAA,2/1/2017,Higher Crime,LEGAL AID FUND,DANNY G MOORE,1143113:146365252,30258.72,Legal Aid - Higher Crime
MINISTRY OF JUSTICE,0290 LAA,2/1/2017,Higher Crime,LEGAL AID FUND,SEAN KIVDEH,1143148:146373675,47391.96,Legal Aid - Higher Crime
MINISTRY OF JUSTICE,0290 LAA,2/1/2017,Higher Crime,LEGAL AID FUND,JAMES R TILBURY,1143165:146373026,36780.84,Legal Aid - Higher Crime
MINISTRY OF JUSTICE,0290 LAA,2/1/2017,Higher Crime,LEGAL AID FUND,WILLIAM RYAN,1143199:146357499,35176.92,Legal Aid - Higher Crime
MINISTRY OF JUSTICE,0290 LAA,2/1/2017,Higher Crime,LEGAL AID FUND,ANTHONY M RIMMER,1143204:146348031,37814.81,Legal Aid - Higher Crime
MINISTRY OF JUSTICE,0290 LAA,2/1/2017,Higher Crime,LEGAL AID FUND,MICHAEL F A BORELLI QC,1143205:146374074,28417.16,Legal Aid - Higher Crime
MINISTRY OF JUSTICE,0290 LAA,2/1/2017,Civil Representation,LEGAL AID FUND,DOUSHKA KRISH,1143313:146386941,25358.4,Legal Aid - Civil Representation
MINISTRY OF JUSTICE,0290 LAA,2/1/2017,Higher Crime,LEGAL AID FUND,IAN JOBLING,1143324:146373910,26666.48,Legal Aid - Higher Crime
MINISTRY OF JUSTICE,0290 LAA,2/1/2017,Legal Help,LEGAL AID FUND,HALLIDAY REEVES LAW FIRM,1143462:146390503,38717,Legal Aid - Legal Help
MINISTRY OF JUSTICE,0290 LAA,2/1/2017,Lower Crime,LEGAL AID FUND,ASHMANS SOLICITORS LTD,1143476:146391626,25851,Legal Aid - Lower Crime
MINISTRY OF JUSTICE,0290 LAA,2/1/2017,Legal Help,LEGAL AID FUND,WIMBLEDON SOLICITORS,1143477:146391026,25709,Legal Aid - Legal Help
MINISTRY OF JUSTICE,0290 LAA,2/1/2017,Lower Crime,LEGAL AID FUND,CARTWRIGHT KING LTD,1143483:146391723,41749,Legal Aid - Lower Crime
MINISTRY OF JUSTICE,0290 LAA,2/1/2017,Legal Help,LEGAL AID FUND,KESAR & CO SOLICITORS,1143485:146390614,36184,Legal Aid - Legal Help
MINISTRY OF JUSTICE,0290 LAA,2/1/2017,Lower Crime,LEGAL AID FUND,KESAR & CO SOLICITORS,1143485:146392100,25116,Legal Aid - Lower Crime
MINISTRY OF JUSTICE,0290 LAA,2/1/2017,Lower Crime,LEGAL AID FUND,K LEGAL SOLICITORS,1143491:146392084,36177,Legal Aid - Lower Crime
MINISTRY OF JUSTICE,0290 LAA,2/1/2017,Higher Crime,LEGAL AID FUND,K LEGAL SOLICITORS,1143491:146394044,31497.62,Legal Aid - Higher Crime
MINISTRY OF JUSTICE,0290 LAA,2/1/2017,Lower Crime,LEGAL AID FUND,WELLS BURCOMBE LLP,1143500:146392545,48935,Legal Aid - Lower Crime
MINISTRY OF JUSTICE,0290 LAA,2/1/2017,Lower Crime,LEGAL AID FUND,SUSSEX DEFENCE SOLICITORS,1143525:146391416,37000,Legal Aid - Lower Crime
MINISTRY OF JUSTICE,0290 LAA,2/1/2017,Lower Crime,LEGAL AID FUND,HENNESSY & HAMMUDI,1143528:146391435,50000,Legal Aid - Lower Crime
MINISTRY OF JUSTICE,0290 LAA,2/1/2017,Legal Help,LEGAL AID FUND,DUNCAN LEWIS SOLICITORS  LTD,1143530:146389996,36400,Legal Aid - Legal Help
MINISTRY OF JUSTICE,0290 LAA,2/1/2017,Lower Crime,LEGAL AID FUND,HASKELL & CO,1143550:146391965,32606,Legal Aid - Lower Crime
MINISTRY OF JUSTICE,0290 LAA,2/1/2017,Legal Help,LEGAL AID FUND,TRP SOLICITORS LTD,1143552:146389894,26600,Legal Aid - Legal Help
MINISTRY OF JUSTICE,0290 LAA,2/1/2017,Lower Crime,LEGAL AID FUND,DAVID SEDGWICK SOLICITORS LTD,1143554:146391803,35032,Legal Aid - Lower Crime
MINISTRY OF JUSTICE,0290 LAA,2/1/2017,Legal Help,LEGAL AID FUND,FOUNTAIN SOLICITORS LTD,1143559:146389890,55000,Legal Aid - Legal Help
MINISTRY OF JUSTICE,0290 LAA,2/1/2017,Legal Help,LEGAL AID FUND,GUILE NICHOLAS-INC DONALD GALBRAITH & CO,1143562:146390013,73400,Legal Aid - Legal Help
MINISTRY OF JUSTICE,0290 LAA,2/1/2017,Higher Crime,LEGAL AID FUND,MPG SOLICITORS,1143570:146357461,44960.52,Legal Aid - Higher Crime
MINISTRY OF JUSTICE,0290 LAA,2/1/2017,Lower Crime,LEGAL AID FUND,M B LAW LTD,1143573:146392156,26885,Legal Aid - Lower Crime
MINISTRY OF JUSTICE,0290 LAA,2/1/2017,Legal Help,LEGAL AID FUND,DONOVAN NEWTON SOLICITORS,1143584:146390382,46607,Legal Aid - Legal Help
MINISTRY OF JUSTICE,0290 LAA,2/1/2017,Legal Help,LEGAL AID FUND,ALBANY SOLICITORS,1143602:146390172,38878,Legal Aid - Legal Help
MINISTRY OF JUSTICE,0290 LAA,2/1/2017,Legal Help,LEGAL AID FUND,LAWANA & CO,1143605:146389997,79000,Legal Aid - Legal Help
MINISTRY OF JUSTICE,0290 LAA,2/1/2017,Lower Crime,LEGAL AID FUND,SWAIN & CO SOLICITORS,1143609:146391143,25600,Legal Aid - Lower Crime
MINISTRY OF JUSTICE,0290 LAA,2/1/2017,Legal Help,LEGAL AID FUND,CARTWRIGHT KING LTD,1143627:146390276,70976,Legal Aid - Legal Help
MINISTRY OF JUSTICE,0290 LAA,2/1/2017,Lower Crime,LEGAL AID FUND,CARTWRIGHT KING LTD,1143627:146391719,46848,Legal Aid - Lower Crime
MINISTRY OF JUSTICE,0290 LAA,2/1/2017,Legal Help,LEGAL AID FUND,OXFORD LAW GROUP,1143628:146390140,38900,Legal Aid - Legal Help
MINISTRY OF JUSTICE,0290 LAA,2/1/2017,Lower Crime,LEGAL AID FUND,HENRY'S SOLICITORS LTD,1143639:146391985,28796,Legal Aid - Lower Crime
MINISTRY OF JUSTICE,0290 LAA,2/1/2017,Lower Crime,LEGAL AID FUND,STEVEN YOUNG & CO INC ROWBIS,1143645:146392443,33810,Legal Aid - Lower Crime
MINISTRY OF JUSTICE,0290 LAA,2/1/2017,Lower Crime,LEGAL AID FUND,SWAIN & CO SOLICITORS,1143646:146391420,38300,Legal Aid - Lower Crime
MINISTRY OF JUSTICE,0290 LAA,2/1/2017,Legal Help,LEGAL AID FUND,SWAIN & CO SOLICITORS,1143647:146390128,35000,Legal Aid - Legal Help
MINISTRY OF JUSTICE,0290 LAA,2/1/2017,Lower Crime,LEGAL AID FUND,IRVINE THANVI NATAS SOLICITORS,1143648:146391147,70400,Legal Aid - Lower Crime
MINISTRY OF JUSTICE,0290 LAA,2/1/2017,Lower Crime,LEGAL AID FUND,COTISENS SOLICITORS,1143649:146391776,26995,Legal Aid - Lower Crime
MINISTRY OF JUSTICE,0290 LAA,2/1/2017,Lower Crime,LEGAL AID FUND,HERMANS,1143653:146391347,27200,Legal Aid - Lower Crime
MINISTRY OF JUSTICE,0290 LAA,2/1/2017,Legal Help,LEGAL AID FUND,ALASTAIR BATEMAN & CO,1143679:146390171,34785,Legal Aid - Legal Help
MINISTRY OF JUSTICE,0290 LAA,2/1/2017,Lower Crime,LEGAL AID FUND,BOND JOSEPH,1143682:146391667,65758,Legal Aid - Lower Crime
MINISTRY OF JUSTICE,0290 LAA,2/1/2017,Lower Crime,LEGAL AID FUND,S A LAW CHAMBERS SOLICITORS,1143689:146391141,45600,Legal Aid - Lower Crime
MINISTRY OF JUSTICE,0290 LAA,2/1/2017,Lower Crime,LEGAL AID FUND,USMANI KING LTD,1143694:146392512,33791,Legal Aid - Lower Crime
MINISTRY OF JUSTICE,0290 LAA,2/1/2017,Legal Help,LEGAL AID FUND,TURPIN & MILLER LLP,1143695:146390966,34062,Legal Aid - Legal Help
MINISTRY OF JUSTICE,0290 LAA,2/1/2017,Higher Crime,LEGAL AID FUND,SHANAHANS SOLICITORS & ADVOCATES,1143699:146374202,37296.8,Legal Aid - Higher Crime
MINISTRY OF JUSTICE,0290 LAA,2/1/2017,Lower Crime,LEGAL AID FUND,VYMAN SOLICITORS LTD,1143711:146392524,54402,Legal Aid - Lower Crime
MINISTRY OF JUSTICE,0290 LAA,2/1/2017,Lower Crime,LEGAL AID FUND,STEPHEN RIMMER LLP,1143719:146391399,30000,Legal Aid - Lower Crime
MINISTRY OF JUSTICE,0290 LAA,2/1/2017,Lower Crime,LEGAL AID FUND,WILSON DEVONALD GRIFFITHS JOHN,1143736:146391049,45000,Legal Aid - Lower Crime
MINISTRY OF JUSTICE,0290 LAA,2/1/2017,Lower Crime,LEGAL AID FUND,BURTON COPELAND LLP,1143760:146391702,42183,Legal Aid - Lower Crime
MINISTRY OF JUSTICE,0290 LAA,2/1/2017,Legal Help,LEGAL AID FUND,ELDER RAHIMI LIMITED,1143764:146390400,37090,Legal Aid - Legal Help
MINISTRY OF JUSTICE,0290 LAA,2/1/2017,Higher Crime,LEGAL AID FUND,DRAYCOTT BROWNE LTD,1143772:146357579,61232.35,Legal Aid - Higher Crime
MINISTRY OF JUSTICE,0290 LAA,2/1/2017,Lower Crime,LEGAL AID FUND,MPR SOLICITORS LLP,1143781:146391214,30500,Legal Aid - Lower Crime
MINISTRY OF JUSTICE,0290 LAA,2/1/2017,Civil Representation,LEGAL AID FUND,PEARSONS,1143790:146302335,25033.37,Legal Aid - Civil Representation
MINISTRY OF JUSTICE,0290 LAA,2/1/2017,Civil Representation,LEGAL AID FUND,PEARSONS,1143790:146303048,29877.23,Legal Aid - Civil Representation
MINISTRY OF JUSTICE,0290 LAA,2/1/2017,Lower Crime,LEGAL AID FUND,RMNJ SOLICITORS ***,1143792:146392359,26710,Legal Aid - Lower Crime
MINISTRY OF JUSTICE,0290 LAA,2/1/2017,Lower Crime,LEGAL AID FUND,SHELLEY & CO,1143795:146392401,29283,Legal Aid - Lower Crime
MINISTRY OF JUSTICE,0290 LAA,2/1/2017,Civil Representation,LEGAL AID FUND,NOBLE SOLICITORS,1143796:146361535,29840.02,Legal Aid - Civil Representation
MINISTRY OF JUSTICE,0290 LAA,2/1/2017,Legal Help,LEGAL AID FUND,NOBLE SOLICITORS,1143796:146390724,28510,Legal Aid - Legal Help
MINISTRY OF JUSTICE,0290 LAA,2/1/2017,Lower Crime,LEGAL AID FUND,NOBLE SOLICITORS,1143796:146392240,25744,Legal Aid - Lower Crime
MINISTRY OF JUSTICE,0290 LAA,2/1/2017,Higher Crime,LEGAL AID FUND,PURCELL PARKER LTD,1143802:146365501,71780.66,Legal Aid - Higher Crime
MINISTRY OF JUSTICE,0290 LAA,2/1/2017,Lower Crime,LEGAL AID FUND,PURCELL PARKER LTD,1143802:146391500,110300,Legal Aid - Lower Crime
MINISTRY OF JUSTICE,0290 LAA,2/1/2017,Lower Crime,LEGAL AID FUND,RILEY HAYES & CO,1143804:146391525,47000,Legal Aid - Lower Crime
MINISTRY OF JUSTICE,0290 LAA,2/1/2017,Lower Crime,LEGAL AID FUND,REEDS SOLICITORS LTD,1143810:146392334,53922,Legal Aid - Lower Crime
MINISTRY OF JUSTICE,0290 LAA,2/1/2017,Higher Crime,LEGAL AID FUND,TRANTERS CRIMINAL LAW PRACTICE,1143812:146393728,33185.96,Legal Aid - Higher Crime
MINISTRY OF JUSTICE,0290 LAA,2/1/2017,Lower Crime,LEGAL AID FUND,TAYLOR STREET SOLICITORS LLP,1143857:146391404,61700,Legal Aid - Lower Crime
MINISTRY OF JUSTICE,0290 LAA,2/1/2017,Lower Crime,LEGAL AID FUND,GEOFFREY FORRESTER & CO,1143884:146391259,46700,Legal Aid - Lower Crime
MINISTRY OF JUSTICE,0290 LAA,2/1/2017,Lower Crime,LEGAL AID FUND,WILLIAMSONS SOLICITORS LTD,1143889:146391324,48600,Legal Aid - Lower Crime
MINISTRY OF JUSTICE,0290 LAA,2/1/2017,Lower Crime,LEGAL AID FUND,HENRY HYAMS,1143891:146391983,47482,Legal Aid - Lower Crime
MINISTRY OF JUSTICE,0290 LAA,2/1/2017,Lower Crime,LEGAL AID FUND,VICKERS CHISMAN & WISHLADE,1143902:146391247,43800,Legal Aid - Lower Crime
MINISTRY OF JUSTICE,0290 LAA,2/1/2017,Lower Crime,LEGAL AID FUND,MCMILLAN WILLIAMS SOLICITORS LTD,1143921:146391165,62200,Legal Aid - Lower Crime
MINISTRY OF JUSTICE,0290 LAA,2/1/2017,Lower Crime,LEGAL AID FUND,FMW LAW LTD,1143923:146391131,74100,Legal Aid - Lower Crime
MINISTRY OF JUSTICE,0290 LAA,2/1/2017,Lower Crime,LEGAL AID FUND,GRAHAM EVANS & PARTNERS LLP,1143946:146391048,31900,Legal Aid - Lower Crime
MINISTRY OF JUSTICE,0290 LAA,2/1/2017,Lower Crime,LEGAL AID FUND,BESWICKS SOLICITORS LLP,1143972:146391653,41049,Legal Aid - Lower Crime
MINISTRY OF JUSTICE,0290 LAA,2/1/2017,Civil Representation,LEGAL AID FUND,BRENDAN FLEMING SOLICITORS,1143974:3000000951740015,46972.33,Legal Aid - Civil Representation
MINISTRY OF JUSTICE,0290 LAA,2/1/2017,Legal Help,LEGAL AID FUND,CMHT SOLICITORS,1143978:146390781,41598,Legal Aid - Legal Help
MINISTRY OF JUSTICE,0290 LAA,2/1/2017,Lower Crime,LEGAL AID FUND,SONN MACMILLAN WALKER LTD,1144007:146391136,58500,Legal Aid - Lower Crime
MINISTRY OF JUSTICE,0290 LAA,2/1/2017,Lower Crime,LEGAL AID FUND,NELSON GUEST & PARTNERS,1144010:146392233,30963,Legal Aid - Lower Crime
MINISTRY OF JUSTICE,0290 LAA,2/1/2017,Legal Help,LEGAL AID FUND,BHATT MURPHY SOLICITORS,1144015:146390229,25826,Legal Aid - Legal Help
MINISTRY OF JUSTICE,0290 LAA,2/1/2017,Lower Crime,LEGAL AID FUND,MARTYN HEWETT,1144017:146391401,33900,Legal Aid - Lower Crime
MINISTRY OF JUSTICE,0290 LAA,2/1/2017,Lower Crime,LEGAL AID FUND,DOBSONS,1144051:146391162,35000,Legal Aid - Lower Crime
MINISTRY OF JUSTICE,0290 LAA,2/1/2017,Legal Help,LEGAL AID FUND,JESSE DOUGLAS & AASKELLS SOLICITORS,1144055:146390595,39883,Legal Aid - Legal Help
MINISTRY OF JUSTICE,0290 LAA,2/1/2017,Legal Help,LEGAL AID FUND,SCOTT-MONCRIEFF & ASSOCIATES LLP,1144063:146390017,49300,Legal Aid - Legal Help
MINISTRY OF JUSTICE,0290 LAA,2/1/2017,Lower Crime,LEGAL AID FUND,MARTIN MURRAY & ASSOCIATES,1144068:146392171,27276,Legal Aid - Lower Crime
MINISTRY OF JUSTICE,0290 LAA,2/1/2017,Lower Crime,LEGAL AID FUND,MARTIN MURRAY & ASSOCIATES,1144069:146392170,68583,Legal Aid - Lower Crime
MINISTRY OF JUSTICE,0290 LAA,2/1/2017,Higher Crime,LEGAL AID FUND,MARTIN MURRAY & ASSOCIATES,1144069:146393862,57668.27,Legal Aid - Higher Crime
MINISTRY OF JUSTICE,0290 LAA,2/1/2017,Higher Crime,LEGAL AID FUND,MFI LAW LTD,1144086:146347583,76140.69,Legal Aid - Higher Crime
MINISTRY OF JUSTICE,0290 LAA,2/1/2017,Lower Crime,LEGAL AID FUND,INSTALAW,1144091:146392035,39598,Legal Aid - Lower Crime
MINISTRY OF JUSTICE,0290 LAA,2/1/2017,Lower Crime,LEGAL AID FUND,ONUMA & CO LLP,1144109:146392260,30194,Legal Aid - Lower Crime
MINISTRY OF JUSTICE,0290 LAA,2/1/2017,Legal Help,LEGAL AID FUND,MIGRANT LEGAL PROJECT,1144216:146390695,42739,Legal Aid - Legal Help
MINISTRY OF JUSTICE,0290 LAA,2/1/2017,Lower Crime,LEGAL AID FUND,DJMS SOLICITORS LTD,1144314:146391826,27304,Legal Aid - Lower Crime
MINISTRY OF JUSTICE,0290 LAA,2/1/2017,Higher Crime,LEGAL AID FUND,ALLAN S COMPTON,1144476:146373237,27386.4,Legal Aid - Higher Crime
MINISTRY OF JUSTICE,0290 LAA,2/1/2017,Higher Crime,LEGAL AID FUND,MOHAMMED NAWAZ,1144592:146373409,30114.24,Legal Aid - Higher Crime
MINISTRY OF JUSTICE,0290 LAA,2/1/2017,Higher Crime,LEGAL AID FUND,JAMES K PICKUP QC,1144607:146362293,46099.99,Legal Aid - Higher Crime
MINISTRY OF JUSTICE,0290 LAA,2/1/2017,Higher Crime,LEGAL AID FUND,PETER CARTER QC,1144609:146393264,44197.75,Legal Aid - Higher Crime
MINISTRY OF JUSTICE,0290 LAA,2/1/2017,Higher Crime,LEGAL AID FUND,NICHOLAS P RHODES QC,1144733:146373018,26393.4,Legal Aid - Higher Crime
MINISTRY OF JUSTICE,0290 LAA,2/1/2017,Legal Help,LEGAL AID FUND,LEI DAT BAIG SOLICITORS LIMITED,1144771:146390631,37816,Legal Aid - Legal Help
MINISTRY OF JUSTICE,0290 LAA,2/1/2017,Legal Help,LEGAL AID FUND,BRIGHTON HOUSING TRUST,1144787:146390257,36985,Legal Aid - Legal Help
MINISTRY OF JUSTICE,0290 LAA,2/1/2017,Lower Crime,LEGAL AID FUND,CRIMINAL DEFENCE MILTON KEYNES LTD,1144808:146391427,38500,Legal Aid - Lower Crime
MINISTRY OF JUSTICE,0290 LAA,2/1/2017,Lower Crime,LEGAL AID FUND,GURNEY HARDEN SOLICITORS,1144810:146391943,48486,Legal Aid - Lower Crime
MINISTRY OF JUSTICE,0290 LAA,2/1/2017,Lower Crime,LEGAL AID FUND,NOBLE SOLICITORS,1144820:146392241,61088,Legal Aid - Lower Crime
MINISTRY OF JUSTICE,0290 LAA,2/1/2017,Lower Crime,LEGAL AID FUND,WELLS BURCOMBE LLP,1144825:146392544,65429,Legal Aid - Lower Crime
MINISTRY OF JUSTICE,0290 LAA,2/1/2017,Lower Crime,LEGAL AID FUND,ALLEN HOOLE SOLICITORS,1144832:146391461,25000,Legal Aid - Lower Crime
MINISTRY OF JUSTICE,0290 LAA,2/1/2017,Lower Crime,LEGAL AID FUND,HEALEY COLBON,1144839:146391104,27300,Legal Aid - Lower Crime
MINISTRY OF JUSTICE,0290 LAA,2/1/2017,Lower Crime,LEGAL AID FUND,VHS FLETCHERS,1144854:146391081,32700,Legal Aid - Lower Crime
MINISTRY OF JUSTICE,0290 LAA,2/1/2017,Higher Crime,LEGAL AID FUND,SVS SOLICITORS,1144855:146374055,34146.38,Legal Aid - Higher Crime
MINISTRY OF JUSTICE,0290 LAA,2/1/2017,Lower Crime,LEGAL AID FUND,REEVES  & CO SOLICITORS,1144861:146392342,39904,Legal Aid - Lower Crime
MINISTRY OF JUSTICE,0290 LAA,2/1/2017,Lower Crime,LEGAL AID FUND,KEANEY WHITEHEAD PARTNERSHIP,1144862:146392092,28928,Legal Aid - Lower Crime
MINISTRY OF JUSTICE,0290 LAA,2/1/2017,Lower Crime,LEGAL AID FUND,THE FIRM LLP,1144863:146391522,27500,Legal Aid - Lower Crime
MINISTRY OF JUSTICE,0290 LAA,2/1/2017,Lower Crime,LEGAL AID FUND,GRECH GOODEN SOLICITORS LTD,1144873:146391939,54055,Legal Aid - Lower Crime
MINISTRY OF JUSTICE,0290 LAA,2/1/2017,Civil Representation,LEGAL AID FUND,MAKIN DIXON SOLICITORS LTD,1144881:146360301,46976.3,Legal Aid - Civil Representation
MINISTRY OF JUSTICE,0290 LAA,2/1/2017,Lower Crime,LEGAL AID FUND,LEVY & CO SOLICITORS LLP,1144882:146391113,42100,Legal Aid - Lower Crime
MINISTRY OF JUSTICE,0290 LAA,2/1/2017,Lower Crime,LEGAL AID FUND,NUMBER ONE LAW LLP,1144887:146392248,32632,Legal Aid - Lower Crime
MINISTRY OF JUSTICE,0290 LAA,2/1/2017,Lower Crime,LEGAL AID FUND,GEOFF WHITE & CO,1144900:146391915,46800,Legal Aid - Lower Crime
MINISTRY OF JUSTICE,0290 LAA,2/1/2017,Lower Crime,LEGAL AID FUND,SMITH PARTNERSHIP,1144903:146391504,28700,Legal Aid - Lower Crime
MINISTRY OF JUSTICE,0290 LAA,2/1/2017,Lower Crime,LEGAL AID FUND,GWB HARTHILLS LLP,1144909:146391945,39201,Legal Aid - Lower Crime
MINISTRY OF JUSTICE,0290 LAA,2/1/2017,Legal Help,LEGAL AID FUND,HOWE & CO,1144910:146390553,80456,Legal Aid - Legal Help
MINISTRY OF JUSTICE,0290 LAA,2/1/2017,Lower Crime,LEGAL AID FUND,BLACKWELLS,1144911:146391310,31000,Legal Aid - Lower Crime
MINISTRY OF JUSTICE,0290 LAA,2/1/2017,Lower Crime,LEGAL AID FUND,LUMB & MACGILL,1144921:146391309,46800,Legal Aid - Lower Crime
MINISTRY OF JUSTICE,0290 LAA,2/1/2017,Legal Help,LEGAL AID FUND,THALIWAL & CO LTD,1144930:146390933,28209,Legal Aid - Legal Help
MINISTRY OF JUSTICE,0290 LAA,2/1/2017,Lower Crime,LEGAL AID FUND,ISON HARRISON LTD,1144945:146391321,26200,Legal Aid - Lower Crime
MINISTRY OF JUSTICE,0290 LAA,2/1/2017,Lower Crime,LEGAL AID FUND,JOHN DELANEY & CO SOLICITORS,1144947:146391320,30000,Legal Aid - Lower Crime
MINISTRY OF JUSTICE,0290 LAA,2/1/2017,Lower Crime,LEGAL AID FUND,JONAS ROY BLOOM,1144960:146391499,36700,Legal Aid - Lower Crime
MINISTRY OF JUSTICE,0290 LAA,2/1/2017,Lower Crime,LEGAL AID FUND,MCGRATH & CO SOLICITORS,1144962:146391498,30000,Legal Aid - Lower Crime
MINISTRY OF JUSTICE,0290 LAA,2/1/2017,Lower Crime,LEGAL AID FUND,GLAISYERS LLP,1144972:146391922,27767,Legal Aid - Lower Crime
MINISTRY OF JUSTICE,0290 LAA,2/1/2017,Lower Crime,LEGAL AID FUND,HOWARD & BYRNE SOLICITORS,1144974:146391305,43000,Legal Aid - Lower Crime
MINISTRY OF JUSTICE,0290 LAA,2/1/2017,Lower Crime,LEGAL AID FUND,BIRDS SOLICITORS LTD,1144977:146391158,40800,Legal Aid - Lower Crime
MINISTRY OF JUSTICE,0290 LAA,2/1/2017,Lower Crime,LEGAL AID FUND,SMITH PARTNERSHIP,1144989:146391086,63700,Legal Aid - Lower Crime
MINISTRY OF JUSTICE,0290 LAA,2/1/2017,Lower Crime,LEGAL AID FUND,SMITH PARTNERSHIP,1144991:146391085,33300,Legal Aid - Lower Crime
MINISTRY OF JUSTICE,0290 LAA,2/1/2017,Lower Crime,LEGAL AID FUND,KIRWANS,1144993:146392109,34527,Legal Aid - Lower Crime
MINISTRY OF JUSTICE,0290 LAA,2/1/2017,Legal Help,LEGAL AID FUND,BINDMANS LLP,1144994:146390019,55800,Legal Aid - Legal Help
MINISTRY OF JUSTICE,0290 LAA,2/1/2017,Lower Crime,LEGAL AID FUND,FORBES SOLICITORS,1145006:146391356,25600,Legal Aid - Lower Crime
MINISTRY OF JUSTICE,0290 LAA,2/1/2017,Legal Help,LEGAL AID FUND,OTTEN PENNA LTD,1145010:146390047,29000,Legal Aid - Legal Help
MINISTRY OF JUSTICE,0290 LAA,2/1/2017,Higher Crime,LEGAL AID FUND,JOE EGAN SOLICITORS LTD,1145013:146373275,72969.57,Legal Aid - Higher Crime
MINISTRY OF JUSTICE,0290 LAA,2/1/2017,Legal Help,LEGAL AID FUND,LISA MARIE MCNULTY SOLICITOR,1145017:146390639,28214,Legal Aid - Legal Help
MINISTRY OF JUSTICE,0290 LAA,2/1/2017,Lower Crime,LEGAL AID FUND,T S LAW LTD,1145021:146391186,25000,Legal Aid - Lower Crime
MINISTRY OF JUSTICE,0290 LAA,2/1/2017,Lower Crime,LEGAL AID FUND,HUTCHINSON THOMAS,1145026:146392024,30478,Legal Aid - Lower Crime
MINISTRY OF JUSTICE,0290 LAA,2/1/2017,Lower Crime,LEGAL AID FUND,DALTON HOLMES GRAY,1145029:146391797,27977,Legal Aid - Lower Crime
MINISTRY OF JUSTICE,0290 LAA,2/1/2017,Lower Crime,LEGAL AID FUND,RICHARDSON SOLICITORS,1145030:146391413,27700,Legal Aid - Lower Crime
MINISTRY OF JUSTICE,0290 LAA,2/1/2017,Higher Crime,LEGAL AID FUND,RAHMAN RAVELLI SOLICITORS LTD,1145032:146394210,71970.59,Legal Aid - Higher Crime
MINISTRY OF JUSTICE,0290 LAA,2/1/2017,Lower Crime,LEGAL AID FUND,ROY FOREMAN & CO SOLICITORS,1145057:146391316,27000,Legal Aid - Lower Crime
MINISTRY OF JUSTICE,0290 LAA,2/1/2017,Legal Help,LEGAL AID FUND,WILSON SOLICITORS LLP,1145067:146370865,125000,Legal Aid - Legal Help
MINISTRY OF JUSTICE,0290 LAA,2/1/2017,Lower Crime,LEGAL AID FUND,JAMES MURRAY SOLICITORS,1145087:146392049,27913,Legal Aid - Lower Crime
MINISTRY OF JUSTICE,0290 LAA,2/1/2017,Higher Crime,LEGAL AID FUND,JOSEPH HILL & CO,1145112:146356891,37656.72,Legal Aid - Higher Crime
MINISTRY OF JUSTICE,0290 LAA,2/1/2017,Lower Crime,LEGAL AID FUND,JOSEPH HILL & CO,1145112:146392073,39756,Legal Aid - Lower Crime
MINISTRY OF JUSTICE,0290 LAA,2/1/2017,Lower Crime,LEGAL AID FUND,LAWRENCE & CO SOLICITORS CDS LLP,1145113:146391203,65000,Legal Aid - Lower Crime
MINISTRY OF JUSTICE,0290 LAA,2/1/2017,Civil Representation,LEGAL AID FUND,HOWELLS LLP,1145147:146351208,43034.38,Legal Aid - Civil Representation
MINISTRY OF JUSTICE,0290 LAA,2/1/2017,Legal Help,LEGAL AID FUND,HOWELLS LLP,1145147:146389967,34800,Legal Aid - Legal Help
MINISTRY OF JUSTICE,0290 LAA,2/1/2017,Lower Crime,LEGAL AID FUND,HOWELLS LLP,1145147:146391287,52900,Legal Aid - Lower Crime
MINISTRY OF JUSTICE,0290 LAA,2/1/2017,Legal Help,LEGAL AID FUND,SWITALSKI'S SOLICITORS LTD,1145154:146390905,43634,Legal Aid - Legal Help
MINISTRY OF JUSTICE,0290 LAA,2/1/2017,Lower Crime,LEGAL AID FUND,SWITALSKI'S SOLICITORS LTD,1145154:146392456,26843,Legal Aid - Lower Crime
MINISTRY OF JUSTICE,0290 LAA,2/1/2017,Lower Crime,LEGAL AID FUND,ELLIOT MATHER LLP,1145174:146391082,28500,Legal Aid - Lower Crime
MINISTRY OF JUSTICE,0290 LAA,2/1/2017,Civil Representation,LEGAL AID FUND,ELLIOT MATHER LLP,1145174:3000000697360017,28087.75,Legal Aid - Civil Representation
MINISTRY OF JUSTICE,0290 LAA,2/1/2017,Lower Crime,LEGAL AID FUND,NORRIE WAITE & SLATER,1145184:146391289,38000,Legal Aid - Lower Crime
MINISTRY OF JUSTICE,0290 LAA,2/1/2017,Legal Help,LEGAL AID FUND,BURKE NIAZI  LTD,1145188:146370936,120000,Legal Aid - Legal Help
MINISTRY OF JUSTICE,0290 LAA,2/1/2017,Higher Crime,LEGAL AID FUND,GOODALL BARNETT JAMES SOLICITORS,1145193:146357441,30440.89,Legal Aid - Higher Crime
MINISTRY OF JUSTICE,0290 LAA,2/1/2017,Legal Help,LEGAL AID FUND,QS JACKSON CANTER LTD,1145205:146390777,28064,Legal Aid - Legal Help
MINISTRY OF JUSTICE,0290 LAA,2/1/2017,Civil Representation,LEGAL AID FUND,NYLAND & BEATTIE,1145209:146370160,27195.54,Legal Aid - Civil Representation
MINISTRY OF JUSTICE,0290 LAA,2/1/2017,Higher Crime,LEGAL AID FUND,DE MAIDS SOLICITORS & ADVOCATES,1145217:146373460,44804.87,Legal Aid - Higher Crime
MINISTRY OF JUSTICE,0290 LAA,2/1/2017,Lower Crime,LEGAL AID FUND,HAMER CHILDS,1145235:146391506,37000,Legal Aid - Lower Crime
MINISTRY OF JUSTICE,0290 LAA,2/1/2017,Lower Crime,LEGAL AID FUND,JOHN ONIONS SOLICITORS,1145237:146392066,36558,Legal Aid - Lower Crime
MINISTRY OF JUSTICE,0290 LAA,2/1/2017,Civil Representation,LEGAL AID FUND,NORTHWOOD LAW PRACTICE LTD,1145244:146360402,27176.98,Legal Aid - Civil Representation
MINISTRY OF JUSTICE,0290 LAA,2/1/2017,Civil Representation,LEGAL AID FUND,WHATLEY RECORDON,1145248:3000000664290003,35354.27,Legal Aid - Civil Representation
MINISTRY OF JUSTICE,0290 LAA,2/1/2017,Lower Crime,LEGAL AID FUND,ROBERT LIZAR,1145266:146391385,35000,Legal Aid - Lower Crime
MINISTRY OF JUSTICE,0290 LAA,2/1/2017,Higher Crime,LEGAL AID FUND,ROBERT LIZAR,1145266:146394208,47867.13,Legal Aid - Higher Crime
MINISTRY OF JUSTICE,0290 LAA,2/1/2017,Higher Crime,LEGAL AID FUND,STEPHENSONS SOLICITORS LLP,1145272:146373531,115420.55,Legal Aid - Higher Crime
MINISTRY OF JUSTICE,0290 LAA,2/1/2017,Lower Crime,LEGAL AID FUND,STEPHENSONS SOLICITORS LLP,1145272:146392438,30148,Legal Aid - Lower Crime
MINISTRY OF JUSTICE,0290 LAA,2/1/2017,Civil Representation,LEGAL AID FUND,DAWSON CORNWELL,1145293:146386876,28984.89,Legal Aid - Civil Representation
MINISTRY OF JUSTICE,0290 LAA,2/1/2017,Higher Crime,LEGAL AID FUND,BLACKFORDS LLP,1145295:146365059,51661.69,Legal Aid - Higher Crime
MINISTRY OF JUSTICE,0290 LAA,2/1/2017,Higher Crime,LEGAL AID FUND,BLACKFORDS LLP,1145295:146374195,26714.94,Legal Aid - Higher Crime
MINISTRY OF JUSTICE,0290 LAA,2/1/2017,Lower Crime,LEGAL AID FUND,BLACKFORDS LLP,1145295:146391663,40710,Legal Aid - Lower Crime
MINISTRY OF JUSTICE,0290 LAA,2/1/2017,Lower Crime,LEGAL AID FUND,THOMAS BOYD WHYTE,1145302:146392484,37187,Legal Aid - Lower Crime
MINISTRY OF JUSTICE,0290 LAA,2/1/2017,Civil Representation,LEGAL AID FUND,BLACKFORDS LLP,1145306:146369944,43677.06,Legal Aid - Civil Representation
MINISTRY OF JUSTICE,0290 LAA,2/1/2017,Lower Crime,LEGAL AID FUND,GAMMON PIERCY & GAIGER,1145307:146391907,38124,Legal Aid - Lower Crime
MINISTRY OF JUSTICE,0290 LAA,2/1/2017,Higher Crime,LEGAL AID FUND,SAUNDERS SOLICITORS LTD,1145321:146348122,81347.36,Legal Aid - Higher Crime
MINISTRY OF JUSTICE,0290 LAA,2/1/2017,Lower Crime,LEGAL AID FUND,SAUNDERS SOLICITORS LTD,1145321:146391200,25700,Legal Aid - Lower Crime
MINISTRY OF JUSTICE,0290 LAA,2/1/2017,Legal Help,LEGAL AID FUND,SUTOVIC & HARTIGAN,1145327:146390023,26212.29,Legal Aid - Legal Help
MINISTRY OF JUSTICE,0290 LAA,2/1/2017,Lower Crime,LEGAL AID FUND,BRADY EASTWOOD PIERCE & STEWART,1145330:146391675,25415,Legal Aid - Lower Crime
MINISTRY OF JUSTICE,0290 LAA,2/1/2017,Civil Representation,LEGAL AID FUND,EDWARDS DUTHIE,1145331:146284846,26989.59,Legal Aid - Civil Representation
MINISTRY OF JUSTICE,0290 LAA,2/1/2017,Lower Crime,LEGAL AID FUND,ROACH PITTIS,1145355:146391428,26400,Legal Aid - Lower Crime
MINISTRY OF JUSTICE,0290 LAA,2/1/2017,Lower Crime,LEGAL AID FUND,FREEMANS SOLICITORS,1145357:146391199,27900,Legal Aid - Lower Crime
MINISTRY OF JUSTICE,0290 LAA,2/1/2017,Civil Representation,LEGAL AID FUND,NASH & CO SOLICITORS LLP,1145362:146359622,31495.83,Legal Aid - Civil Representation
MINISTRY OF JUSTICE,0290 LAA,2/1/2017,Higher Crime,LEGAL AID FUND,KAIM TODNER SOLICITORS LIMITED,1145364:146347745,95707.01,Legal Aid - Higher Crime
MINISTRY OF JUSTICE,0290 LAA,2/1/2017,Lower Crime,LEGAL AID FUND,KAIM TODNER SOLICITORS LIMITED,1145364:146392085,26919,Legal Aid - Lower Crime
MINISTRY OF JUSTICE,0290 LAA,2/1/2017,Lower Crime,LEGAL AID FUND,KAIM TODNER SOLICITORS LIMITED,1145365:146392086,45286,Legal Aid - Lower Crime
MINISTRY OF JUSTICE,0290 LAA,2/1/2017,Higher Crime,LEGAL AID FUND,STOKOE PARTNERSHIP,1145368:146362286,129203.06,Legal Aid - Higher Crime
MINISTRY OF JUSTICE,0290 LAA,2/1/2017,Lower Crime,LEGAL AID FUND,REEDS SOLICITORS LTD,1145391:146392339,39182,Legal Aid - Lower Crime
MINISTRY OF JUSTICE,0290 LAA,2/1/2017,Lower Crime,LEGAL AID FUND,ALDERSON LAW LLP,1145475:146391552,30800,Legal Aid - Lower Crime
MINISTRY OF JUSTICE,0290 LAA,2/1/2017,Lower Crime,LEGAL AID FUND,HILL TWINE,1145478:146391995,27252,Legal Aid - Lower Crime
MINISTRY OF JUSTICE,0290 LAA,2/1/2017,Legal Help,LEGAL AID FUND,A. DE RUANO,1145508:146390156,98735,Legal Aid - Legal Help
MINISTRY OF JUSTICE,0290 LAA,2/1/2017,Legal Help,LEGAL AID FUND,WILSON SOLICITORS LLP,1145527:146391023,37032,Legal Aid - Legal Help
MINISTRY OF JUSTICE,0290 LAA,2/1/2017,Legal Help,LEGAL AID FUND,DUNCAN LEWIS SOLICITORS  LTD,1145544:146390153,59300,Legal Aid - Legal Help
MINISTRY OF JUSTICE,0290 LAA,2/1/2017,Higher Crime,LEGAL AID FUND,HOSSEIN ZAHIR,1145564:146346821,39306.72,Legal Aid - Higher Crime
MINISTRY OF JUSTICE,0290 LAA,2/1/2017,Higher Crime,LEGAL AID FUND,HENRY BLAXLAND QC,1145580:146385584,70960,Legal Aid - Higher Crime
MINISTRY OF JUSTICE,0290 LAA,2/1/2017,Higher Crime,LEGAL AID FUND,RAJIV MENON,1145584:146347857,44585.18,Legal Aid - Higher Crime
MINISTRY OF JUSTICE,0290 LAA,2/1/2017,Higher Crime,LEGAL AID FUND,RAJIV MENON,1145584:146347908,42528.38,Legal Aid - Higher Crime
MINISTRY OF JUSTICE,0290 LAA,2/1/2017,Higher Crime,LEGAL AID FUND,BERNARD RICHMOND QC,1145588:146393313,30493.39,Legal Aid - Higher Crime
MINISTRY OF JUSTICE,0290 LAA,2/1/2017,Higher Crime,LEGAL AID FUND,ROBERT C SMITH - 4972E,1145601:146364131,25641.05,Legal Aid - Higher Crime
MINISTRY OF JUSTICE,0290 LAA,2/1/2017,Higher Crime,LEGAL AID FUND,PAUL K WILLIAMS,1145620:146364401,26249.28,Legal Aid - Higher Crime
MINISTRY OF JUSTICE,0290 LAA,2/1/2017,Higher Crime,LEGAL AID FUND,GEOFFREY PAYNE,1145636:146385586,35620.01,Legal Aid - Higher Crime
MINISTRY OF JUSTICE,0290 LAA,2/1/2017,Higher Crime,LEGAL AID FUND,STEPHENSONS LLP-ADVOCATE,1145660:146393287,27462.46,Legal Aid - Higher Crime
MINISTRY OF JUSTICE,0290 LAA,2/1/2017,Legal Help,LEGAL AID FUND,APFEL BELL & CO SOLICITORS,1145677:146390189,26751,Legal Aid - Legal Help
MINISTRY OF JUSTICE,0290 LAA,2/1/2017,Higher Crime,LEGAL AID FUND,DEREK J DUFFY,1145774:146348161,51751.32,Legal Aid - Higher Crime
MINISTRY OF JUSTICE,0290 LAA,2/1/2017,Higher Crime,LEGAL AID FUND,DAVID A GOTTLIEB,1145782:146357324,31589.26,Legal Aid - Higher Crime
MINISTRY OF JUSTICE,0290 LAA,2/1/2017,Higher Crime,LEGAL AID FUND,BALBIR SINGH,1145805:146385974,34600,Legal Aid - Higher Crime
MINISTRY OF JUSTICE,0290 LAA,2/1/2017,Higher Crime,LEGAL AID FUND,J PETER G GRIFFITHS QC,1145810:146373113,40363.96,Legal Aid - Higher Crime
MINISTRY OF JUSTICE,0290 LAA,2/1/2017,Civil Representation,LEGAL AID FUND,ALEX G TAYLOR,1145821:146316917,34138.8,Legal Aid - Civil Representation
MINISTRY OF JUSTICE,0290 LAA,2/1/2017,Civil Representation,LEGAL AID FUND,NICHOLAS A J GOODWIN,1145905:3000001087270012,26697.6,Legal Aid - Civil Representation
MINISTRY OF JUSTICE,0290 LAA,2/1/2017,Civil Representation,LEGAL AID FUND,AIDAN J W VINE,1145906:3000000937910012,43480.8,Legal Aid - Civil Representation
MINISTRY OF JUSTICE,0290 LAA,2/1/2017,Higher Crime,LEGAL AID FUND,ANTHONY R BARRACLOUGH,1145930:146361397,34600,Legal Aid - Higher Crime
MINISTRY OF JUSTICE,0290 LAA,2/1/2017,Higher Crime,LEGAL AID FUND,JOANNE CECIL,1145957:146364417,25460.59,Legal Aid - Higher Crime
MINISTRY OF JUSTICE,0290 LAA,2/1/2017,Higher Crime,LEGAL AID FUND,JOHN RYDER QC,1146012:146346979,37709.02,Legal Aid - Higher Crime
MINISTRY OF JUSTICE,0290 LAA,2/1/2017,Higher Crime,LEGAL AID FUND,WILLIAM DAVIS,1146052:146348334,31033.8,Legal Aid - Higher Crime
MINISTRY OF JUSTICE,0290 LAA,2/1/2017,Lower Crime,LEGAL AID FUND,JSP LAW LTD,1146121:146392076,64060,Legal Aid - Lower Crime
MINISTRY OF JUSTICE,0290 LAA,2/1/2017,Higher Crime,LEGAL AID FUND,ASKEWS LEGAL LLP,1146129:146357407,48793.29,Legal Aid - Higher Crime
MINISTRY OF JUSTICE,0290 LAA,2/1/2017,Lower Crime,LEGAL AID FUND,G T STEWART LTD,1146145:146391900,31737,Legal Aid - Lower Crime
MINISTRY OF JUSTICE,0290 LAA,2/1/2017,Lower Crime,LEGAL AID FUND,G T STEWART LTD,1146150:146391895,29401,Legal Aid - Lower Crime
MINISTRY OF JUSTICE,0290 LAA,2/1/2017,Lower Crime,LEGAL AID FUND,LEVALES SOLICITORS LLP,1146153:146392137,25113,Legal Aid - Lower Crime
MINISTRY OF JUSTICE,0290 LAA,2/1/2017,Lower Crime,LEGAL AID FUND,HINE SOLICITORS,1146154:146392003,41319,Legal Aid - Lower Crime
MINISTRY OF JUSTICE,0290 LAA,2/1/2017,Lower Crime,LEGAL AID FUND,HINE SOLICITORS,1146155:146392002,68151,Legal Aid - Lower Crime
MINISTRY OF JUSTICE,0290 LAA,2/1/2017,Lower Crime,LEGAL AID FUND,HINE SOLICITORS,1146156:146392001,30640,Legal Aid - Lower Crime
MINISTRY OF JUSTICE,0290 LAA,2/1/2017,Lower Crime,LEGAL AID FUND,HINE SOLICITORS,1146157:146392000,44917,Legal Aid - Lower Crime
MINISTRY OF JUSTICE,0290 LAA,2/1/2017,Lower Crime,LEGAL AID FUND,DJMS SOLICITORS LTD,1146158:146391825,38545,Legal Aid - Lower Crime
MINISTRY OF JUSTICE,0290 LAA,2/1/2017,Lower Crime,LEGAL AID FUND,THE JOHNSON PARTNERSHIP,1146163:146391536,40000,Legal Aid - Lower Crime
MINISTRY OF JUSTICE,0290 LAA,2/1/2017,Lower Crime,LEGAL AID FUND,SANSBURY DOUGLAS,1146165:146391533,50000,Legal Aid - Lower Crime
MINISTRY OF JUSTICE,0290 LAA,2/1/2017,Legal Help,LEGAL AID FUND,AMAN SOLICITORS ADVOCATES LIMITED,1146169:146390185,25996,Legal Aid - Legal Help
MINISTRY OF JUSTICE,0290 LAA,2/1/2017,Legal Help,LEGAL AID FUND,HALLIDAY REEVES LAW FIRM,1146176:146390502,26410,Legal Aid - Legal Help
MINISTRY OF JUSTICE,0290 LAA,2/1/2017,Lower Crime,LEGAL AID FUND,WESSEX SOLICITORS CHAMBERS,1146187:146391530,55000,Legal Aid - Lower Crime
MINISTRY OF JUSTICE,0290 LAA,2/1/2017,Lower Crime,LEGAL AID FUND,MY BRIEF SOLICITORS LTD,1146200:146392228,29276,Legal Aid - Lower Crime
MINISTRY OF JUSTICE,0290 LAA,2/1/2017,Lower Crime,LEGAL AID FUND,H P GOWER SOLICITORS,1146201:146391947,38224,Legal Aid - Lower Crime
MINISTRY OF JUSTICE,0290 LAA,2/1/2017,Higher Crime,LEGAL AID FUND,MONIORO LESS & CO SOLICITORS,1146224:146348044,71961,Legal Aid - Higher Crime
MINISTRY OF JUSTICE,0290 LAA,2/1/2017,Lower Crime,LEGAL AID FUND,MCGANNS LAW LTD,1146228:146392184,45275,Legal Aid - Lower Crime
MINISTRY OF JUSTICE,0290 LAA,2/1/2017,Higher Crime,LEGAL AID FUND,ABV SOLICITORS,1146233:146374198,68296.77,Legal Aid - Higher Crime
MINISTRY OF JUSTICE,0290 LAA,2/1/2017,Lower Crime,LEGAL AID FUND,ABV SOLICITORS,1146233:146391171,80800,Legal Aid - Lower Crime
MINISTRY OF JUSTICE,0290 LAA,2/1/2017,Higher Crime,LEGAL AID FUND,MITCHELLS,1146239:146356865,89975.11,Legal Aid - Higher Crime
MINISTRY OF JUSTICE,0290 LAA,2/1/2017,Lower Crime,LEGAL AID FUND,LAWTONS SOLICITORS LTD,1146250:146391101,25000,Legal Aid - Lower Crime
MINISTRY OF JUSTICE,0290 LAA,2/1/2017,Higher Crime,LEGAL AID FUND,I B B SOLICITORS,1146261:146348301,40399.36,Legal Aid - Higher Crime
MINISTRY OF JUSTICE,0290 LAA,2/1/2017,Lower Crime,LEGAL AID FUND,I B B SOLICITORS,1146261:146391168,98100,Legal Aid - Lower Crime
MINISTRY OF JUSTICE,0290 LAA,2/1/2017,Lower Crime,LEGAL AID FUND,WAINWRIGHT & CUMMINS LLP,1146263:146391219,42000,Legal Aid - Lower Crime
MINISTRY OF JUSTICE,0290 LAA,2/1/2017,Lower Crime,LEGAL AID FUND,DARRYL INGRAM & CO,1146264:146391177,27600,Legal Aid - Lower Crime
MINISTRY OF JUSTICE,0290 LAA,2/1/2017,Lower Crime,LEGAL AID FUND,SAMUEL & CO SOLICITORS,1146269:146391187,25800,Legal Aid - Lower Crime
MINISTRY OF JUSTICE,0290 LAA,2/1/2017,Legal Help,LEGAL AID FUND,PARAGON LAW LTD,1146271:146390117,40000,Legal Aid - Legal Help
MINISTRY OF JUSTICE,0290 LAA,2/1/2017,Legal Help,LEGAL AID FUND,M H LEGAL,1146272:146390652,37415,Legal Aid - Legal Help
MINISTRY OF JUSTICE,0290 LAA,2/1/2017,Civil Representation,LEGAL AID FUND,WILLISCROFT & CO SOLICITORS,1146279:146316363,26475.78,Legal Aid - Civil Representation
MINISTRY OF JUSTICE,0290 LAA,2/1/2017,Lower Crime,LEGAL AID FUND,ALBIN & CO LTD,1146287:146391434,56600,Legal Aid - Lower Crime
MINISTRY OF JUSTICE,0290 LAA,2/1/2017,Lower Crime,LEGAL AID FUND,OBW PERERA LTD,1146290:146391122,29000,Legal Aid - Lower Crime
MINISTRY OF JUSTICE,0290 LAA,2/1/2017,Lower Crime,LEGAL AID FUND,BELMORES SOLICITORS LTD,1146294:146391648,28842,Legal Aid - Lower Crime
MINISTRY OF JUSTICE,0290 LAA,2/1/2017,Legal Help,LEGAL AID FUND,BUTLER & CO,1146299:146389924,36500,Legal Aid - Legal Help
MINISTRY OF JUSTICE,0290 LAA,2/1/2017,Civil Representation,LEGAL AID FUND,FAMILY LAW LTD,1146306:146353288,25765.81,Legal Aid - Civil Representation
MINISTRY OF JUSTICE,0290 LAA,2/1/2017,Higher Crime,LEGAL AID FUND,J D SOLICITORS,1146309:146347318,25901.22,Legal Aid - Higher Crime
MINISTRY OF JUSTICE,0290 LAA,2/1/2017,Lower Crime,LEGAL AID FUND,J D SOLICITORS,1146309:146392041,40510,Legal Aid - Lower Crime
MINISTRY OF JUSTICE,0290 LAA,2/1/2017,Legal Help,LEGAL AID FUND,LUPINS,1146317:146390629,91312,Legal Aid - Legal Help
MINISTRY OF JUSTICE,0290 LAA,2/1/2017,Lower Crime,LEGAL AID FUND,STEPHEN BURDON SOLICITORS,1146318:146391080,29500,Legal Aid - Lower Crime
MINISTRY OF JUSTICE,0290 LAA,2/1/2017,Lower Crime,LEGAL AID FUND,MANN & CO SOLICITORS,1146327:146391484,27600,Legal Aid - Lower Crime
MINISTRY OF JUSTICE,0290 LAA,2/1/2017,Lower Crime,LEGAL AID FUND,OLLIERS SOLICITORS LTD,1146342:146392255,26931,Legal Aid - Lower Crime
MINISTRY OF JUSTICE,0290 LAA,2/1/2017,Lower Crime,LEGAL AID FUND,GHP LEGAL,1146354:146391056,43800,Legal Aid - Lower Crime
MINISTRY OF JUSTICE,0290 LAA,2/1/2017,Higher Crime,LEGAL AID FUND,FARADAYS SOLICITORS LTD,1146360:146372831,48800.44,Legal Aid - Higher Crime
MINISTRY OF JUSTICE,0290 LAA,2/1/2017,Lower Crime,LEGAL AID FUND,BOOTS STARKE GOACHER SOLICITORS,1146386:146391670,31364,Legal Aid - Lower Crime
MINISTRY OF JUSTICE,0290 LAA,2/1/2017,Lower Crime,LEGAL AID FUND,COBAINS SOLICITORS,1146390:146391372,30000,Legal Aid - Lower Crime
MINISTRY OF JUSTICE,0290 LAA,2/1/2017,Legal Help,LEGAL AID FUND,O'DONNELLS SOLICITORS,1146392:146390738,27560,Legal Aid - Legal Help
MINISTRY OF JUSTICE,0290 LAA,2/1/2017,Legal Help,LEGAL AID FUND,DUNCAN LEWIS SOLICITORS  LTD,1146403:146370935,268400,Legal Aid - Legal Help
MINISTRY OF JUSTICE,0290 LAA,2/1/2017,Lower Crime,LEGAL AID FUND,DUNCAN LEWIS SOLICITORS  LTD,1146403:146391183,70100,Legal Aid - Lower Crime
MINISTRY OF JUSTICE,0290 LAA,2/1/2017,Legal Help,LEGAL AID FUND,DUNCAN LEWIS SOLICITORS  LTD,1146404:146370866,400000,Legal Aid - Legal Help
MINISTRY OF JUSTICE,0290 LAA,2/1/2017,Lower Crime,LEGAL AID FUND,DUNCAN LEWIS SOLICITORS  LTD,1146404:146391841,51617,Legal Aid - Lower Crime
MINISTRY OF JUSTICE,0290 LAA,2/1/2017,Higher Crime,LEGAL AID FUND,GEPP & SONS SOLICITORS,1146408:146357014,76547.43,Legal Aid - Higher Crime
MINISTRY OF JUSTICE,0290 LAA,2/1/2017,Legal Help,LEGAL AID FUND,HUNT & COOMBS LLP,1146416:146389950,32200,Legal Aid - Legal Help
MINISTRY OF JUSTICE,0290 LAA,2/1/2017,Civil Representation,LEGAL AID FUND,COZENS-HARDY LLP,1146417:3000000483180006,34716.26,Legal Aid - Civil Representation
MINISTRY OF JUSTICE,0290 LAA,2/1/2017,Lower Crime,LEGAL AID FUND,ROBERTSON'S SOLICITORS,1146440:146391303,48500,Legal Aid - Lower Crime
MINISTRY OF JUSTICE,0290 LAA,2/1/2017,Civil Representation,LEGAL AID FUND,BG SOLICITORS LLP,1146458:3000001096860031,39938.4,Legal Aid - Civil Representation
MINISTRY OF JUSTICE,0290 LAA,2/1/2017,Lower Crime,LEGAL AID FUND,BHATIA BEST LTD,1146459:146391065,35200,Legal Aid - Lower Crime
MINISTRY OF JUSTICE,0290 LAA,2/1/2017,Lower Crime,LEGAL AID FUND,BHATIA BEST LTD,1146461:146391061,67000,Legal Aid - Lower Crime
MINISTRY OF JUSTICE,0290 LAA,2/1/2017,Higher Crime,LEGAL AID FUND,BANKSIDE LAW LIMITED,1146464:146374167,71545.9,Legal Aid - Higher Crime
MINISTRY OF JUSTICE,0290 LAA,2/1/2017,Lower Crime,LEGAL AID FUND,WALKER LAHIVE,1146472:146392529,28453,Legal Aid - Lower Crime
MINISTRY OF JUSTICE,0290 LAA,2/1/2017,Lower Crime,LEGAL AID FUND,ALLEN HOOLE SOLICITORS,1146476:146391452,59300,Legal Aid - Lower Crime
MINISTRY OF JUSTICE,0290 LAA,2/1/2017,Lower Crime,LEGAL AID FUND,PHILIP HANBY LTD T/A ANDREW JAY & CO,1146485:146392296,28624,Legal Aid - Lower Crime
MINISTRY OF JUSTICE,0290 LAA,2/1/2017,Lower Crime,LEGAL AID FUND,CARTER OSBORNE LTD,1146490:146391716,70739,Legal Aid - Lower Crime
MINISTRY OF JUSTICE,0290 LAA,2/1/2017,Lower Crime,LEGAL AID FUND,METCALFE COPEMAN & PETTEFAR,1146497:146391126,38700,Legal Aid - Lower Crime
MINISTRY OF JUSTICE,0290 LAA,2/1/2017,Lower Crime,LEGAL AID FUND,RUSSELL & RUSSELL SOLICITORS,1146521:146392376,31402,Legal Aid - Lower Crime
MINISTRY OF JUSTICE,0290 LAA,2/1/2017,Legal Help,LEGAL AID FUND,FADIGA & CO LTD,1146528:146390411,41826,Legal Aid - Legal Help
MINISTRY OF JUSTICE,0290 LAA,2/1/2017,Higher Crime,LEGAL AID FUND,JANES SOLICITORS,1146538:146356985,26464.45,Legal Aid - Higher Crime
MINISTRY OF JUSTICE,0290 LAA,2/1/2017,Lower Crime,LEGAL AID FUND,STEVENS SOLICITORS,1146539:146391494,39000,Legal Aid - Lower Crime
MINISTRY OF JUSTICE,0290 LAA,2/1/2017,Lower Crime,LEGAL AID FUND,STEVENS SOLICITORS,1146541:146391488,60000,Legal Aid - Lower Crime
MINISTRY OF JUSTICE,0290 LAA,2/1/2017,Lower Crime,LEGAL AID FUND,STEVENS SOLICITORS,1146542:146391487,74500,Legal Aid - Lower Crime
MINISTRY OF JUSTICE,0290 LAA,2/1/2017,Higher Crime,LEGAL AID FUND,MSB LAW LLP,1146547:146373955,31021.67,Legal Aid - Higher Crime
MINISTRY OF JUSTICE,0290 LAA,2/1/2017,Lower Crime,LEGAL AID FUND,OLIVER D'SA SOLICITORS,1146568:146392254,52615,Legal Aid - Lower Crime
MINISTRY OF JUSTICE,0290 LAA,2/1/2017,Lower Crime,LEGAL AID FUND,KEMPS SOLICITORS,1146586:146392096,31197,Legal Aid - Lower Crime
MINISTRY OF JUSTICE,0290 LAA,2/1/2017,Lower Crime,LEGAL AID FUND,BARRETT & NELLIGAN SOLICITORS LTD,1146592:146391371,27000,Legal Aid - Lower Crime
MINISTRY OF JUSTICE,0290 LAA,2/1/2017,Lower Crime,LEGAL AID FUND,BOBBETTS MACKAN,1146598:146391450,42000,Legal Aid - Lower Crime
MINISTRY OF JUSTICE,0290 LAA,2/1/2017,Lower Crime,LEGAL AID FUND,ERIC ROBINSON SOLICITORS,1146600:146391419,31800,Legal Aid - Lower Crime
MINISTRY OF JUSTICE,0290 LAA,2/1/2017,Lower Crime,LEGAL AID FUND,LLOYD & ROWE LLP,1146606:146391051,43000,Legal Aid - Lower Crime
MINISTRY OF JUSTICE,0290 LAA,2/1/2017,Lower Crime,LEGAL AID FUND,RODNEY WARREN & CO LTD,1146614:146391396,66500,Legal Aid - Lower Crime
MINISTRY OF JUSTICE,0290 LAA,2/1/2017,Legal Help,LEGAL AID FUND,STEPHENS & SCOWN LLP,1146619:146390886,25916,Legal Aid - Legal Help
MINISTRY OF JUSTICE,0290 LAA,2/1/2017,Lower Crime,LEGAL AID FUND,RENSHAW DERRICK & CO,1146658:146392345,32926,Legal Aid - Lower Crime
MINISTRY OF JUSTICE,0290 LAA,2/1/2017,Civil Representation,LEGAL AID FUND,BARRETT & THOMSON,1146659:3000000417100035,36000,Legal Aid - Civil Representation
MINISTRY OF JUSTICE,0290 LAA,2/1/2017,Legal Help,LEGAL AID FUND,GLEDHILL SOLICITORS,1146666:146390471,55999,Legal Aid - Legal Help
MINISTRY OF JUSTICE,0290 LAA,2/1/2017,Lower Crime,LEGAL AID FUND,EWINGS & CO,1146680:146391164,27100,Legal Aid - Lower Crime
MINISTRY OF JUSTICE,0290 LAA,2/1/2017,Higher Crime,LEGAL AID FUND,GORDON SHINE & COMPANY SOLICITORS,1146682:146347041,85839.17,Legal Aid - Higher Crime
MINISTRY OF JUSTICE,0290 LAA,2/1/2017,Lower Crime,LEGAL AID FUND,ONE LEGAL SERVICES LTD,1146708:146392257,29248,Legal Aid - Lower Crime
MINISTRY OF JUSTICE,0290 LAA,2/1/2017,Lower Crime,LEGAL AID FUND,TUCKERS SOLICITORS LLP,1146710:146392506,29040,Legal Aid - Lower Crime
MINISTRY OF JUSTICE,0290 LAA,2/1/2017,Legal Help,LEGAL AID FUND,GUILE NICHOLAS-INC DONALD GALBRAITH & CO,1146733:146390495,39682,Legal Aid - Legal Help
MINISTRY OF JUSTICE,0290 LAA,2/1/2017,Legal Help,LEGAL AID FUND,CARTWRIGHT KING LTD,1146734:146390278,25088,Legal Aid - Legal Help
MINISTRY OF JUSTICE,0290 LAA,2/1/2017,Lower Crime,LEGAL AID FUND,TUCKERS SOLICITORS LLP,1146750:146391555,27400,Legal Aid - Lower Crime
MINISTRY OF JUSTICE,0290 LAA,2/1/2017,Legal Help,LEGAL AID FUND,APPLEMAN LEGAL,1146808:146390191,37710,Legal Aid - Legal Help
MINISTRY OF JUSTICE,0290 LAA,2/1/2017,Legal Help,LEGAL AID FUND,ABBOTSTONE LAW LLP,1146815:146390158,72516,Legal Aid - Legal Help
MINISTRY OF JUSTICE,0290 LAA,2/1/2017,Legal Help,LEGAL AID FUND,BISON SOLICITORS LTD,1146820:146390234,50626,Legal Aid - Legal Help
MINISTRY OF JUSTICE,0290 LAA,2/1/2017,Civil Representation,LEGAL AID FUND,JAMES TURNER,1146827:3000001248840008,36196.2,Legal Aid - Civil Representation
MINISTRY OF JUSTICE,0290 LAA,2/1/2017,Higher Crime,LEGAL AID FUND,TIMOTHY GREY,1146834:146400165,35620.01,Legal Aid - Higher Crime
MINISTRY OF JUSTICE,0290 LAA,2/1/2017,Lower Crime,LEGAL AID FUND,MORGAN CULLEN & BALL LTD,1146921:146392214,27549,Legal Aid - Lower Crime
MINISTRY OF JUSTICE,0290 LAA,2/1/2017,Higher Crime,LEGAL AID FUND,DUNCAN COOKE,1146937:146393943,27680.66,Legal Aid - Higher Crime
MINISTRY OF JUSTICE,0290 LAA,2/1/2017,Legal Help,LEGAL AID FUND,QS JACKSON CANTER LTD,1146950:146390779,89455,Legal Aid - Legal Help
MINISTRY OF JUSTICE,0290 LAA,2/1/2017,Lower Crime,LEGAL AID FUND,QS JACKSON CANTER LTD,1146950:146392316,34621,Legal Aid - Lower Crime
MINISTRY OF JUSTICE,0290 LAA,2/1/2017,Lower Crime,LEGAL AID FUND,REEDS SOLICITORS LTD,1146975:146392336,36672,Legal Aid - Lower Crime
MINISTRY OF JUSTICE,0290 LAA,2/1/2017,Lower Crime,LEGAL AID FUND,T S LAW LTD,1147002:146391546,25000,Legal Aid - Lower Crime
MINISTRY OF JUSTICE,0290 LAA,2/1/2017,Civil Representation,LEGAL AID FUND,COVENT GARDEN FAMILY LAW SOLICITORS,1147005:146361720,25068.26,Legal Aid - Civil Representation
MINISTRY OF JUSTICE,0290 LAA,2/1/2017,Higher Crime,LEGAL AID FUND,REBECCA NIETO,1147023:146394194,35981.78,Legal Aid - Higher Crime
MINISTRY OF JUSTICE,0290 LAA,2/1/2017,Higher Crime,LEGAL AID FUND,BRUCE I STUART,1147053:146400898,37480,Legal Aid - Higher Crime
MINISTRY OF JUSTICE,0290 LAA,2/1/2017,Higher Crime,LEGAL AID FUND,IMRAN KHAN,1147073:146393345,35421.94,Legal Aid - Higher Crime
MINISTRY OF JUSTICE,0290 LAA,2/1/2017,Higher Crime,LEGAL AID FUND,RACHEL R V A BRAND QC,1147178:146356966,29603.82,Legal Aid - Higher Crime
MINISTRY OF JUSTICE,0290 LAA,2/1/2017,Higher Crime,LEGAL AID FUND,CAROLINE HAUGHEY,1147237:146401496,53839.99,Legal Aid - Higher Crime
MINISTRY OF JUSTICE,0290 LAA,2/1/2017,Higher Crime,LEGAL AID FUND,MARK R TRAFFORD,1147292:146400164,70960,Legal Aid - Higher Crime
MINISTRY OF JUSTICE,0290 LAA,2/1/2017,Higher Crime,LEGAL AID FUND,TOMAS A QUINN,1147317:146394703,27347.16,Legal Aid - Higher Crime
MINISTRY OF JUSTICE,0290 LAA,2/1/2017,Higher Crime,LEGAL AID FUND,ALI N BAJWA QC,1147344:146364286,54977.89,Legal Aid - Higher Crime
MINISTRY OF JUSTICE,0290 LAA,2/1/2017,Civil Representation,LEGAL AID FUND,KARL J ROWLEY,1147379:146386937,52390.8,Legal Aid - Civil Representation
MINISTRY OF JUSTICE,0290 LAA,2/1/2017,Higher Crime,LEGAL AID FUND,JBR MORGAN LTD,1147403:146357415,41323.33,Legal Aid - Higher Crime
MINISTRY OF JUSTICE,0290 LAA,2/1/2017,Lower Crime,LEGAL AID FUND,M K LAW SOLICITORS LTD,1147405:146392157,76567,Legal Aid - Lower Crime
MINISTRY OF JUSTICE,0290 LAA,2/1/2017,Lower Crime,LEGAL AID FUND,NOBLE SOLICITORS,1147408:146392242,41749,Legal Aid - Lower Crime
MINISTRY OF JUSTICE,0290 LAA,2/1/2017,Lower Crime,LEGAL AID FUND,HE LAW LTD,1147414:146391979,30628,Legal Aid - Lower Crime
MINISTRY OF JUSTICE,0290 LAA,2/1/2017,Lower Crime,LEGAL AID FUND,HINE SOLICITORS,1147423:146391999,43357,Legal Aid - Lower Crime
MINISTRY OF JUSTICE,0290 LAA,2/1/2017,Lower Crime,LEGAL AID FUND,HINE SOLICITORS,1147426:146391997,25662,Legal Aid - Lower Crime
MINISTRY OF JUSTICE,0290 LAA,2/1/2017,Higher Crime,LEGAL AID FUND,HARRIS SOLICITORS,1147435:146357473,72929.98,Legal Aid - Higher Crime
MINISTRY OF JUSTICE,0290 LAA,2/1/2017,Lower Crime,LEGAL AID FUND,HARRIS SOLICITORS,1147435:146391960,31944,Legal Aid - Lower Crime
MINISTRY OF JUSTICE,0290 LAA,2/1/2017,Lower Crime,LEGAL AID FUND,O'NEILL WRIGHT & NASH,1147436:146392258,32468,Legal Aid - Lower Crime
MINISTRY OF JUSTICE,0290 LAA,2/1/2017,Lower Crime,LEGAL AID FUND,REEDS SOLICITORS LTD,1147442:146392335,35255,Legal Aid - Lower Crime
MINISTRY OF JUSTICE,0290 LAA,2/1/2017,Higher Crime,LEGAL AID FUND,LHS SOLICITORS LLP,1147447:146393009,87572.28,Legal Aid - Higher Crime
MINISTRY OF JUSTICE,0290 LAA,2/1/2017,Lower Crime,LEGAL AID FUND,J D SOLICITORS,1147449:146392042,49747,Legal Aid - Lower Crime
MINISTRY OF JUSTICE,0290 LAA,2/1/2017,Lower Crime,LEGAL AID FUND,KYLES LEGAL PRACTICE,1147450:146392117,27835,Legal Aid - Lower Crime
MINISTRY OF JUSTICE,0290 LAA,2/1/2017,Civil Representation,LEGAL AID FUND,JWP SOLICITORS,1147453:3000001071720013,53573.94,Legal Aid - Civil Representation
MINISTRY OF JUSTICE,0290 LAA,2/1/2017,Lower Crime,LEGAL AID FUND,HDH LAW,1147455:146391537,25000,Legal Aid - Lower Crime
MINISTRY OF JUSTICE,0290 LAA,2/1/2017,Lower Crime,LEGAL AID FUND,LLM SOLICITORS (LONDON) LTD,1147456:146392147,41531,Legal Aid - Lower Crime
MINISTRY OF JUSTICE,0290 LAA,2/1/2017,Lower Crime,LEGAL AID FUND,LAWTONS SOLICITORS LTD,1147460:146391541,85000,Legal Aid - Lower Crime
MINISTRY OF JUSTICE,0290 LAA,2/1/2017,Legal Help,LEGAL AID FUND,CAMPBELL LAW SOLICITORS,1147511:146390133,28300,Legal Aid - Legal Help
MINISTRY OF JUSTICE,0290 LAA,2/1/2017,Lower Crime,LEGAL AID FUND,EBR ATTRIDGE LLP,1147513:146391847,53883,Legal Aid - Lower Crime
MINISTRY OF JUSTICE,0290 LAA,2/1/2017,Lower Crime,LEGAL AID FUND,EBR ATTRIDGE LLP,1147515:146391152,38400,Legal Aid - Lower Crime
MINISTRY OF JUSTICE,0290 LAA,2/1/2017,Lower Crime,LEGAL AID FUND,G T STEWART LTD,1147537:146391894,42985,Legal Aid - Lower Crime
MINISTRY OF JUSTICE,0290 LAA,2/1/2017,Lower Crime,LEGAL AID FUND,LHD SOLICITORS LTD,1147538:146391334,30000,Legal Aid - Lower Crime
MINISTRY OF JUSTICE,0290 LAA,2/1/2017,Lower Crime,LEGAL AID FUND,ROWE SPARKES SOLICITORS LTD,1147549:146391422,29800,Legal Aid - Lower Crime
MINISTRY OF JUSTICE,0290 LAA,2/1/2017,Lower Crime,LEGAL AID FUND,CRIMINAL DEFENCE SOLICITORS,1147554:146391205,50500,Legal Aid - Lower Crime
MINISTRY OF JUSTICE,0290 LAA,2/1/2017,Lower Crime,LEGAL AID FUND,STERNBERG REED SOLICITORS,1147560:146391185,55000,Legal Aid - Lower Crime
MINISTRY OF JUSTICE,0290 LAA,2/1/2017,Higher Crime,LEGAL AID FUND,STERNBERG REED SOLICITORS,1147560:146392977,39590.48,Legal Aid - Higher Crime
MINISTRY OF JUSTICE,0290 LAA,2/1/2017,Lower Crime,LEGAL AID FUND,CRIMINAL DEFENCE ASSOCIATES,1147568:146391094,29300,Legal Aid - Lower Crime
MINISTRY OF JUSTICE,0290 LAA,2/1/2017,Lower Crime,LEGAL AID FUND,CARRINGTONS SOLICITORS,1147572:146391712,152826,Legal Aid - Lower Crime
MINISTRY OF JUSTICE,0290 LAA,2/1/2017,Lower Crime,LEGAL AID FUND,PALMERS CRIMINAL DEFENCE SOLICITORS,1147575:146391402,28100,Legal Aid - Lower Crime
MINISTRY OF JUSTICE,0290 LAA,2/1/2017,Lower Crime,LEGAL AID FUND,BULLIVANT LAW LTD,1147577:146391142,41000,Legal Aid - Lower Crime
MINISTRY OF JUSTICE,0290 LAA,2/1/2017,Lower Crime,LEGAL AID FUND,LESLIE FRANKS SOLICITORS,1147578:146392135,78435,Legal Aid - Lower Crime
MINISTRY OF JUSTICE,0290 LAA,2/1/2017,Lower Crime,LEGAL AID FUND,CROWE HUMBLE WESENCRAFT,1147589:146391265,34200,Legal Aid - Lower Crime
MINISTRY OF JUSTICE,0290 LAA,2/1/2017,Lower Crime,LEGAL AID FUND,CLARKE KIERNAN LLP,1147601:146391759,37090,Legal Aid - Lower Crime
MINISTRY OF JUSTICE,0290 LAA,2/1/2017,Lower Crime,LEGAL AID FUND,NEEDHAM POULIER LTD,1147603:146392231,26453,Legal Aid - Lower Crime
MINISTRY OF JUSTICE,0290 LAA,2/1/2017,Legal Help,LEGAL AID FUND,LUQMANI THOMPSON & PARTNERS,1147605:146390649,25193,Legal Aid - Legal Help
MINISTRY OF JUSTICE,0290 LAA,2/1/2017,Lower Crime,LEGAL AID FUND,ACA LAW LTD,1147608:146391581,33156,Legal Aid - Lower Crime
MINISTRY OF JUSTICE,0290 LAA,2/1/2017,Higher Crime,LEGAL AID FUND,QUINN MELVILLE,1147610:146347324,29334.96,Legal Aid - Higher Crime
MINISTRY OF JUSTICE,0290 LAA,2/1/2017,Lower Crime,LEGAL AID FUND,COBLEYS SOLICITORS LTD,1147611:146391766,27712,Legal Aid - Lower Crime
MINISTRY OF JUSTICE,0290 LAA,2/1/2017,Lower Crime,LEGAL AID FUND,DPP LAW LTD,1147613:146391170,28400,Legal Aid - Lower Crime
MINISTRY OF JUSTICE,0290 LAA,2/1/2017,Lower Crime,LEGAL AID FUND,DPP LAW LTD,1147614:146391229,27800,Legal Aid - Lower Crime
MINISTRY OF JUSTICE,0290 LAA,2/1/2017,Lower Crime,LEGAL AID FUND,JERMAN SAMUELS & PEARSON LLP,1147638:146391112,37600,Legal Aid - Lower Crime
MINISTRY OF JUSTICE,0290 LAA,2/1/2017,Higher Crime,LEGAL AID FUND,JERMAN SAMUELS & PEARSON LLP,1147639:146374183,56717.46,Legal Aid - Higher Crime
MINISTRY OF JUSTICE,0290 LAA,2/1/2017,Lower Crime,LEGAL AID FUND,JERMAN SAMUELS & PEARSON LLP,1147639:146391111,35000,Legal Aid - Lower Crime
MINISTRY OF JUSTICE,0290 LAA,2/1/2017,Lower Crime,LEGAL AID FUND,ORACLE SOLICITORS & CONSULTANTS LTD,1147641:146392261,44842,Legal Aid - Lower Crime
MINISTRY OF JUSTICE,0290 LAA,2/1/2017,Lower Crime,LEGAL AID FUND,RICHARD BODY LAW LTD,1147651:146391400,42100,Legal Aid - Lower Crime
MINISTRY OF JUSTICE,0290 LAA,2/1/2017,Legal Help,LEGAL AID FUND,PETER EDWARDS LAW LTD,1147656:146389990,59200,Legal Aid - Legal Help
MINISTRY OF JUSTICE,0290 LAA,2/1/2017,Legal Help,LEGAL AID FUND,AVON & BRISTOL LAW CENTRE,1147666:146390197,26789,Legal Aid - Legal Help
MINISTRY OF JUSTICE,0290 LAA,2/1/2017,Lower Crime,LEGAL AID FUND,SANDERS WITHERSPOON LLP,1147708:146392386,27696,Legal Aid - Lower Crime
MINISTRY OF JUSTICE,0290 LAA,2/1/2017,Lower Crime,LEGAL AID FUND,VHS FLETCHERS,1147724:146391079,66500,Legal Aid - Lower Crime
MINISTRY OF JUSTICE,0290 LAA,2/1/2017,Civil Representation,LEGAL AID FUND,MCCORMACKS LAW,1147726:146369277,46101.22,Legal Aid - Civil Representation
MINISTRY OF JUSTICE,0290 LAA,2/1/2017,Lower Crime,LEGAL AID FUND,THE JOHNSON PARTNERSHIP,1147748:146391078,38200,Legal Aid - Lower Crime
MINISTRY OF JUSTICE,0290 LAA,2/1/2017,Lower Crime,LEGAL AID FUND,THE JOHNSON PARTNERSHIP,1147749:146391077,34000,Legal Aid - Lower Crime
MINISTRY OF JUSTICE,0290 LAA,2/1/2017,Lower Crime,LEGAL AID FUND,THE JOHNSON PARTNERSHIP,1147750:146391076,190000,Legal Aid - Lower Crime
MINISTRY OF JUSTICE,0290 LAA,2/1/2017,Lower Crime,LEGAL AID FUND,THE CASTLE PARTNERSHIP,1147761:146391406,37000,Legal Aid - Lower Crime
MINISTRY OF JUSTICE,0290 LAA,2/1/2017,Lower Crime,LEGAL AID FUND,MICHAEL PURDON,1147798:146392204,28206,Legal Aid - Lower Crime
MINISTRY OF JUSTICE,0290 LAA,2/1/2017,Lower Crime,LEGAL AID FUND,YARWOOD & STUBLEY,1147800:146391249,35900,Legal Aid - Lower Crime
MINISTRY OF JUSTICE,0290 LAA,2/1/2017,Lower Crime,LEGAL AID FUND,WATSON WOODHOUSE SOLICITORS LLP,1147801:146391252,26500,Legal Aid - Lower Crime
MINISTRY OF JUSTICE,0290 LAA,2/1/2017,Lower Crime,LEGAL AID FUND,WATSON WOODHOUSE SOLICITORS LLP,1147803:146391248,53700,Legal Aid - Lower Crime
MINISTRY OF JUSTICE,0290 LAA,2/1/2017,Higher Crime,LEGAL AID FUND,WATSON WOODHOUSE SOLICITORS LLP,1147803:146392926,31384.15,Legal Aid - Higher Crime
MINISTRY OF JUSTICE,0290 LAA,2/1/2017,Lower Crime,LEGAL AID FUND,TUCKERS SOLICITORS LLP,1147808:146391380,80900,Legal Aid - Lower Crime
MINISTRY OF JUSTICE,0290 LAA,2/1/2017,Lower Crime,LEGAL AID FUND,TUCKERS SOLICITORS LLP,1147809:146391202,110000,Legal Aid - Lower Crime
MINISTRY OF JUSTICE,0290 LAA,2/1/2017,Lower Crime,LEGAL AID FUND,TUCKERS SOLICITORS LLP,1147810:146391501,43300,Legal Aid - Lower Crime
MINISTRY OF JUSTICE,0290 LAA,2/1/2017,Lower Crime,LEGAL AID FUND,STUART MILLER SOLICITORS LTD,1147812:146392450,118631,Legal Aid - Lower Crime
MINISTRY OF JUSTICE,0290 LAA,2/1/2017,Lower Crime,LEGAL AID FUND,VEJA & CO LTD,1147817:146391167,32200,Legal Aid - Lower Crime
MINISTRY OF JUSTICE,0290 LAA,2/1/2017,Legal Help,LEGAL AID FUND,SOUTHERNS SOLICITORS,1147819:146390868,30552,Legal Aid - Legal Help
MINISTRY OF JUSTICE,0290 LAA,2/1/2017,Lower Crime,LEGAL AID FUND,SOUTHERNS SOLICITORS,1147819:146392425,25340,Legal Aid - Lower Crime
MINISTRY OF JUSTICE,0290 LAA,2/1/2017,Lower Crime,LEGAL AID FUND,LANSBURY WORTHINGTON LTD,1147836:146391132,54900,Legal Aid - Lower Crime
MINISTRY OF JUSTICE,0290 LAA,2/1/2017,Legal Help,LEGAL AID FUND,T V EDWARDS LLP,1147837:146390000,61300,Legal Aid - Legal Help
MINISTRY OF JUSTICE,0290 LAA,2/1/2017,Lower Crime,LEGAL AID FUND,T V EDWARDS LLP,1147837:146391184,58600,Legal Aid - Lower Crime
MINISTRY OF JUSTICE,0290 LAA,2/1/2017,Lower Crime,LEGAL AID FUND,HARRIS CUFFARO & NICHOLS,1147840:146391106,48200,Legal Aid - Lower Crime
MINISTRY OF JUSTICE,0290 LAA,2/1/2017,Lower Crime,LEGAL AID FUND,BDH SOLICITORS LTD,1147843:146391365,27400,Legal Aid - Lower Crime
MINISTRY OF JUSTICE,0290 LAA,2/1/2017,Lower Crime,LEGAL AID FUND,CARR & CO [0P040Z],1147851:146391307,34600,Legal Aid - Lower Crime
MINISTRY OF JUSTICE,0290 LAA,2/1/2017,Lower Crime,LEGAL AID FUND,TAIT FARRIER GRAHAM,1147861:146391272,29000,Legal Aid - Lower Crime
MINISTRY OF JUSTICE,0290 LAA,2/1/2017,Lower Crime,LEGAL AID FUND,J D SPICER ZEB,1147866:146392043,108937,Legal Aid - Lower Crime
MINISTRY OF JUSTICE,0290 LAA,2/1/2017,Higher Crime,LEGAL AID FUND,POWELL SPENCER AND PARTNERS,1147867:146347414,63724.69,Legal Aid - Higher Crime
MINISTRY OF JUSTICE,0290 LAA,2/1/2017,Lower Crime,LEGAL AID FUND,POWELL SPENCER AND PARTNERS,1147867:146391148,42600,Legal Aid - Lower Crime
MINISTRY OF JUSTICE,0290 LAA,2/1/2017,Lower Crime,LEGAL AID FUND,ROGERS & CO,1147907:146391474,31400,Legal Aid - Lower Crime
MINISTRY OF JUSTICE,0290 LAA,2/1/2017,Higher Crime,LEGAL AID FUND,DPA LAW LLP,1147927:146346962,40908.44,Legal Aid - Higher Crime
MINISTRY OF JUSTICE,0290 LAA,2/1/2017,Lower Crime,LEGAL AID FUND,MCSORLEY LEWIS LAW LTD,1147928:146392191,25187,Legal Aid - Lower Crime
MINISTRY OF JUSTICE,0290 LAA,2/1/2017,Lower Crime,LEGAL AID FUND,ROSS SOLICITORS LTD,1147938:146391464,35000,Legal Aid - Lower Crime
MINISTRY OF JUSTICE,0290 LAA,2/1/2017,Lower Crime,LEGAL AID FUND,OWEN NASH & CO,1147950:146391509,41000,Legal Aid - Lower Crime
MINISTRY OF JUSTICE,0290 LAA,2/1/2017,Lower Crime,LEGAL AID FUND,HENRY MILNER & CO,1147957:146386858,40642.73,Legal Aid - Lower Crime
MINISTRY OF JUSTICE,0290 LAA,2/1/2017,Lower Crime,LEGAL AID FUND,DAVID RUBIE MITCHELL & CO,1147958:146391149,25000,Legal Aid - Lower Crime
MINISTRY OF JUSTICE,0290 LAA,2/1/2017,Lower Crime,LEGAL AID FUND,HODGE JONES & ALLEN LLP,1147960:146392005,72255,Legal Aid - Lower Crime
MINISTRY OF JUSTICE,0290 LAA,2/1/2017,Civil Representation,LEGAL AID FUND,MAKIN DIXON SOLICITORS LTD,1144881:146360302,46766.3,Legal Aid - Civil Representation
MINISTRY OF JUSTICE,0290 LAA,2/1/2017,Civil Representation,LEGAL AID FUND,BLACKFORDS LLP,1145306:146369962,36633.6,Legal Aid - Civil Representation
MINISTRY OF JUSTICE,0290 LAA,2/1/2017,Civil Representation,LEGAL AID FUND,NASH & CO SOLICITORS LLP,1145362:146359623,31114.33,Legal Aid - Civil Representation
MINISTRY OF JUSTICE,0290 LAA,2/1/2017,Civil Representation,LEGAL AID FUND,DAWSON CORNWELL,1145293:146386877,28182.83,Legal Aid - Civil Representation
MINISTRY OF JUSTICE,0290 LAA,2/1/2017,Civil Representation,LEGAL AID FUND,NORTHWOOD LAW PRACTICE LTD,1145244:146360411,26772.41,Legal Aid - Civil Representation
MINISTRY OF JUSTICE,0290 LAA,2/1/2017,Civil Representation,LEGAL AID FUND,THOMAS DUNTON SOLICITORS,1143769:146107950,25372.76,Legal Aid - Civil Representation
Ministry of Justice,0290 LAA,2/2/2017,5211402002-EXP - PURCHASE OF GOODS/SERVICES - OTHER PROFESSIONAL SERVICES - Legal Services - Third party legal costs,10293343-National Courts Core Team NCT,ROSSENDALES LTD,40065,-106786.86,Collections costs for CCMT
Ministry of Justice,0290 LAA,2/2/2017,5211402002-EXP - PURCHASE OF GOODS/SERVICES - OTHER PROFESSIONAL SERVICES - Legal Services - Third party legal costs,10293343-National Courts Core Team NCT,ROSSENDALES LTD,40065,12069.8,Collections costs for CCMT
Ministry of Justice,0290 LAA,2/2/2017,5211402002-EXP - PURCHASE OF GOODS/SERVICES - OTHER PROFESSIONAL SERVICES - Legal Services - Third party legal costs,10293343-National Courts Core Team NCT,ROSSENDALES LTD,40065,199089.96,Collections costs for CCMT
Ministry of Justice,0290 LAA,2/2/2017,5224102047-EXP - PURCHASE OF GOODS/SERVICES - OTHER - Central Funds - Other,10281000-Central Funds,THEBIGWORD INTERPRETING SERVICES LTD,THEBIGWORDINVOICE13,-467859.26,Translation / Interpreting Serv
Ministry of Justice,0290 LAA,2/2/2017,5224102047-EXP - PURCHASE OF GOODS/SERVICES - OTHER - Central Funds - Other,10281000-Central Funds,THEBIGWORD INTERPRETING SERVICES LTD,THEBIGWORDINVOICE13,467859.26,Translation / Interpreting Serv
Ministry of Justice,0290 LAA,2/2/2017,5224102148-EXP - PURCHASE OF GOODS/SERVICES - OTHER - Translation / Interpreting Services,10281000-Central Funds,THEBIGWORD INTERPRETING SERVICES LTD,THEBIGWORDINVOICE13,467759.26,Translation / Interpreting Serv
MINISTRY OF JUSTICE,0290 LAA,2/2/2017,Civil Representation,LEGAL AID FUND,TIMOTHY J OTTY QC,1148132:146359757,37805.63,Legal Aid - Civil Representation
MINISTRY OF JUSTICE,0290 LAA,2/2/2017,Civil Representation,LEGAL AID FUND,JONATHAN C BENNETT,1148135:146291827,32922.72,Legal Aid - Civil Representation
MINISTRY OF JUSTICE,0290 LAA,2/2/2017,Legal Help,LEGAL AID FUND,DH LAW LTD,1148136:146297258,29082.71,Legal Aid - Legal Help
MINISTRY OF JUSTICE,0290 LAA,2/6/2017,Legal Help,LEGAL AID FUND,CLAPHAM LAW LLP,1148204:146055273,96000,Legal Aid - Legal Help
MINISTRY OF JUSTICE,0290 LAA,2/6/2017,Legal Help,LEGAL AID FUND,CLAPHAM LAW LLP,1148204:146055289,95000,Legal Aid - Legal Help
MINISTRY OF JUSTICE,0290 LAA,2/6/2017,Legal Help,LEGAL AID FUND,CLAPHAM LAW LLP,1148204:146055407,76627.49,Legal Aid - Legal Help
MINISTRY OF JUSTICE,0290 LAA,2/8/2017,Civil Representation,LEGAL AID FUND,COVENT GARDEN FAMILY LAW SOLICITORS,1148262:300000092559JK297,25501.51,Legal Aid - Civil Representation
MINISTRY OF JUSTICE,0290 LAA,2/8/2017,Higher Crime,LEGAL AID FUND,AGI CRIMINAL SOLICITORS LTD,1148307:146453273,43825.44,Legal Aid - Higher Crime
MINISTRY OF JUSTICE,0290 LAA,2/8/2017,Higher Crime,LEGAL AID FUND,SOLOMONS SOLICITORS,1148362:146431260,97258.75,Legal Aid - Higher Crime
MINISTRY OF JUSTICE,0290 LAA,2/8/2017,Higher Crime,LEGAL AID FUND,JOHN C TOWNSEND,1148371:146419129,35620,Legal Aid - Higher Crime
MINISTRY OF JUSTICE,0290 LAA,2/8/2017,Higher Crime,LEGAL AID FUND,BREYDONS SOLICITORS LTD,1148473:146404669,27486.71,Legal Aid - Higher Crime
MINISTRY OF JUSTICE,0290 LAA,2/8/2017,Civil Representation,LEGAL AID FUND,LUPTON FAWCETT LLP,1148513:3000000757020012,66693.83,Legal Aid - Civil Representation
MINISTRY OF JUSTICE,0290 LAA,2/8/2017,Civil Representation,LEGAL AID FUND,JONATHAN D TAYLOR,1148519:3000001186860041,26985.58,Legal Aid - Civil Representation
MINISTRY OF JUSTICE,0290 LAA,2/8/2017,Higher Crime,LEGAL AID FUND,MICHAEL J IVERS,1148584:146422960,40511.4,Legal Aid - Higher Crime
MINISTRY OF JUSTICE,0290 LAA,2/8/2017,Higher Crime,LEGAL AID FUND,PAUL J TREBLE,1148605:146454635,37105.8,Legal Aid - Higher Crime
MINISTRY OF JUSTICE,0290 LAA,2/8/2017,Higher Crime,LEGAL AID FUND,GEOFFREY PAYNE,1148628:146458878,89120,Legal Aid - Higher Crime
MINISTRY OF JUSTICE,0290 LAA,2/8/2017,Higher Crime,LEGAL AID FUND,TAYLOR HALDANE BARLEX-ADVOCATE,1148771:146432352,27902.64,Legal Aid - Higher Crime
MINISTRY OF JUSTICE,0290 LAA,2/8/2017,Higher Crime,LEGAL AID FUND,PATRICK C HILL,1148800:146412748,64392,Legal Aid - Higher Crime
MINISTRY OF JUSTICE,0290 LAA,2/8/2017,Higher Crime,LEGAL AID FUND,MICHAEL EDMONDS,1148876:146405899,37481.83,Legal Aid - Higher Crime
MINISTRY OF JUSTICE,0290 LAA,2/8/2017,Civil Representation,LEGAL AID FUND,LISA BARRACLOUGH,1148970:3000000494800039,35316,Legal Aid - Civil Representation
MINISTRY OF JUSTICE,0290 LAA,2/8/2017,Higher Crime,LEGAL AID FUND,STEVE S PERIAN,1149111:146412984,67328.66,Legal Aid - Higher Crime
MINISTRY OF JUSTICE,0290 LAA,2/8/2017,Civil Representation,LEGAL AID FUND,JANE CROSS QC,1149246:3000000671670071,39916.8,Legal Aid - Civil Representation
MINISTRY OF JUSTICE,0290 LAA,2/8/2017,Civil Representation,LEGAL AID FUND,PETER R MAIN,1149247:146408991,27818.13,Legal Aid - Civil Representation
MINISTRY OF JUSTICE,0290 LAA,2/8/2017,Civil Representation,LEGAL AID FUND,STEPHEN GRIME QC,1149251:146408987,25556.25,Legal Aid - Civil Representation
MINISTRY OF JUSTICE,0290 LAA,2/8/2017,Civil Representation,LEGAL AID FUND,CLARE L GARNHAM,1149279:3000001305140012,49950,Legal Aid - Civil Representation
MINISTRY OF JUSTICE,0290 LAA,2/8/2017,Civil Representation,LEGAL AID FUND,HUGH G MERRY,1149298:146449228,46353.06,Legal Aid - Civil Representation
MINISTRY OF JUSTICE,0290 LAA,2/8/2017,Higher Crime,LEGAL AID FUND,GRAHAM R TREMBATH QC,1149311:146413900,30454.97,Legal Aid - Higher Crime
MINISTRY OF JUSTICE,0290 LAA,2/8/2017,Civil Representation,LEGAL AID FUND,NKUMBE EKANEY QC,1149376:3000001071720015,63990,Legal Aid - Civil Representation
MINISTRY OF JUSTICE,0290 LAA,2/8/2017,Civil Representation,LEGAL AID FUND,SARAH M MORGAN QC,1149397:146447899,31444.2,Legal Aid - Civil Representation
MINISTRY OF JUSTICE,0290 LAA,2/8/2017,Civil Representation,LEGAL AID FUND,ANDREW D NORTON,1149399:3000001469770002,57380.4,Legal Aid - Civil Representation
MINISTRY OF JUSTICE,0290 LAA,2/8/2017,Civil Representation,LEGAL AID FUND,MARCIA HYDE,1149424:146296940,35868,Legal Aid - Civil Representation
MINISTRY OF JUSTICE,0290 LAA,2/8/2017,Higher Crime,LEGAL AID FUND,ROBERT SHAW,1149526:146458847,63240,Legal Aid - Higher Crime
MINISTRY OF JUSTICE,0290 LAA,2/8/2017,Higher Crime,LEGAL AID FUND,SAMUEL BLOM-COOPER,1149528:146458740,63240,Legal Aid - Higher Crime
MINISTRY OF JUSTICE,0290 LAA,2/8/2017,Civil Representation,LEGAL AID FUND,LORRAINE CAVANAGH,1149579:146401034,32285.16,Legal Aid - Civil Representation
MINISTRY OF JUSTICE,0290 LAA,2/8/2017,Higher Crime,LEGAL AID FUND,MARK W SEYMOUR,1149660:146423376,38335.03,Legal Aid - Higher Crime
MINISTRY OF JUSTICE,0290 LAA,2/8/2017,Higher Crime,LEGAL AID FUND,MICHAEL NEOFYTOU,1149674:146458846,89120,Legal Aid - Higher Crime
MINISTRY OF JUSTICE,0290 LAA,2/8/2017,Higher Crime,LEGAL AID FUND,ASHCOTT SOLICITORS LTD,1149750:146453060,73216.31,Legal Aid - Higher Crime
MINISTRY OF JUSTICE,0290 LAA,2/8/2017,Higher Crime,LEGAL AID FUND,KHAN SOLICITORS LTD,1149760:146453093,35597.46,Legal Aid - Higher Crime
MINISTRY OF JUSTICE,0290 LAA,2/8/2017,Higher Crime,LEGAL AID FUND,ADVICE WISE SOLICITORS LTD,1149787:146431651,25097.82,Legal Aid - Higher Crime
MINISTRY OF JUSTICE,0290 LAA,2/8/2017,Higher Crime,LEGAL AID FUND,M K LAW SOLICITORS LTD,1149797:146432165,31949.38,Legal Aid - Higher Crime
MINISTRY OF JUSTICE,0290 LAA,2/8/2017,Higher Crime,LEGAL AID FUND,M.H.SOLICITORS,1149835:146454946,54485.36,Legal Aid - Higher Crime
MINISTRY OF JUSTICE,0290 LAA,2/8/2017,Higher Crime,LEGAL AID FUND,J D SOLICITORS,1149837:146432488,37210.3,Legal Aid - Higher Crime
MINISTRY OF JUSTICE,0290 LAA,2/8/2017,Civil Representation,LEGAL AID FUND,WATKINS SOLICITORS,1149841:146417743,25094.18,Legal Aid - Civil Representation
MINISTRY OF JUSTICE,0290 LAA,2/8/2017,Higher Crime,LEGAL AID FUND,EBR ATTRIDGE LLP,1149879:146404627,72743.42,Legal Aid - Higher Crime
MINISTRY OF JUSTICE,0290 LAA,2/8/2017,Higher Crime,LEGAL AID FUND,GLADSTONE SOLICITORS LTD,1149899:146423913,25247.18,Legal Aid - Higher Crime
MINISTRY OF JUSTICE,0290 LAA,2/8/2017,Higher Crime,LEGAL AID FUND,LEWIS RODGERS LTD,1149910:146404610,34311.85,Legal Aid - Higher Crime
MINISTRY OF JUSTICE,0290 LAA,2/8/2017,Higher Crime,LEGAL AID FUND,BROOKLYN SOLICITORS LTD,1149996:146453187,38741.05,Legal Aid - Higher Crime
MINISTRY OF JUSTICE,0290 LAA,2/8/2017,Higher Crime,LEGAL AID FUND,SAMUEL ROSS SOLICITORS,1150037:146431264,60610.92,Legal Aid - Higher Crime
MINISTRY OF JUSTICE,0290 LAA,2/8/2017,Higher Crime,LEGAL AID FUND,BINDMANS LLP,1150046:146418419,29921.99,Legal Aid - Higher Crime
MINISTRY OF JUSTICE,0290 LAA,2/8/2017,Civil Representation,LEGAL AID FUND,BINDMANS LLP,1150046:146418800,42860.46,Legal Aid - Civil Representation
MINISTRY OF JUSTICE,0290 LAA,2/8/2017,Civil Representation,LEGAL AID FUND,FORBES SOLICITORS,1150057:146409448,40791.98,Legal Aid - Civil Representation
MINISTRY OF JUSTICE,0290 LAA,2/8/2017,Higher Crime,LEGAL AID FUND,FORBES SOLICITORS,1150058:146432081,51429.74,Legal Aid - Higher Crime
MINISTRY OF JUSTICE,0290 LAA,2/8/2017,Higher Crime,LEGAL AID FUND,ELLIOT MATHER LLP,1150123:146404628,36836.02,Legal Aid - Higher Crime
MINISTRY OF JUSTICE,0290 LAA,2/8/2017,Lower Crime,LEGAL AID FUND,THE JOHNSON PARTNERSHIP,1150134:146410841,29624.45,Legal Aid - Lower Crime
MINISTRY OF JUSTICE,0290 LAA,2/8/2017,Civil Representation,LEGAL AID FUND,GRIFFITHS ROBERTSON,1150160:3000000865370014,41104.69,Legal Aid - Civil Representation
MINISTRY OF JUSTICE,0290 LAA,2/8/2017,Higher Crime,LEGAL AID FUND,TUCKERS SOLICITORS LLP,1150204:146431008,34045.89,Legal Aid - Higher Crime
MINISTRY OF JUSTICE,0290 LAA,2/8/2017,Higher Crime,LEGAL AID FUND,TUCKERS SOLICITORS LLP,1150204:146431135,78454.08,Legal Aid - Higher Crime
MINISTRY OF JUSTICE,0290 LAA,2/8/2017,Higher Crime,LEGAL AID FUND,BARK & CO,1150214:146406086,26173.93,Legal Aid - Higher Crime
MINISTRY OF JUSTICE,0290 LAA,2/8/2017,Higher Crime,LEGAL AID FUND,BARK & CO,1150214:146409553,58178.4,Legal Aid - Higher Crime
MINISTRY OF JUSTICE,0290 LAA,2/8/2017,Civil Representation,LEGAL AID FUND,BEN HOARE BELL LLP,1150226:3000000299980026,28846.99,Legal Aid - Civil Representation
MINISTRY OF JUSTICE,0290 LAA,2/8/2017,Civil Representation,LEGAL AID FUND,MILES & PARTNERS LLP,1150229:146368763,27877.83,Legal Aid - Civil Representation
MINISTRY OF JUSTICE,0290 LAA,2/8/2017,Higher Crime,LEGAL AID FUND,JOHN H SMITH,1150278:146422370,35207.35,Legal Aid - Higher Crime
MINISTRY OF JUSTICE,0290 LAA,2/8/2017,Higher Crime,LEGAL AID FUND,JOHN H SMITH,1150278:146422380,64047.06,Legal Aid - Higher Crime
MINISTRY OF JUSTICE,0290 LAA,2/8/2017,Higher Crime,LEGAL AID FUND,APPLEBY HOPE & MATTHEWS,1150287:146422430,28852.12,Legal Aid - Higher Crime
MINISTRY OF JUSTICE,0290 LAA,2/8/2017,Higher Crime,LEGAL AID FUND,MAIDMENTS LTD,1150290:146418129,49027.33,Legal Aid - Higher Crime
MINISTRY OF JUSTICE,0290 LAA,2/8/2017,Higher Crime,LEGAL AID FUND,MAIDMENTS LTD,1150290:146418424,49027.33,Legal Aid - Higher Crime
MINISTRY OF JUSTICE,0290 LAA,2/8/2017,Higher Crime,LEGAL AID FUND,KANGS SOLICITORS,1150312:146422309,26476.72,Legal Aid - Higher Crime
MINISTRY OF JUSTICE,0290 LAA,2/8/2017,Higher Crime,LEGAL AID FUND,DEXTER HENRY & CO,1150333:146454068,89975.11,Legal Aid - Higher Crime
MINISTRY OF JUSTICE,0290 LAA,2/8/2017,Civil Representation,LEGAL AID FUND,EDWARDS DUTHIE,1150408:146419579,27282.18,Legal Aid - Civil Representation
MINISTRY OF JUSTICE,0290 LAA,2/8/2017,Civil Representation,LEGAL AID FUND,STONE KING LLP,1150476:3000001089340022,44975.3,Legal Aid - Civil Representation
MINISTRY OF JUSTICE,0290 LAA,2/8/2017,Higher Crime,LEGAL AID FUND,ANDREW R BAUGHAN,1150841:146431939,36213.12,Legal Aid - Higher Crime
MINISTRY OF JUSTICE,0290 LAA,2/8/2017,Higher Crime,LEGAL AID FUND,MORGAN CULLEN & BALL LTD,1150953:146454240,53770.8,Legal Aid - Higher Crime
MINISTRY OF JUSTICE,0290 LAA,2/8/2017,Civil Representation,LEGAL AID FUND,JACQUELINE L THOMAS,1151093:3000001592960012,27731.94,Legal Aid - Civil Representation
MINISTRY OF JUSTICE,0290 LAA,2/8/2017,Higher Crime,LEGAL AID FUND,RICHARD M BARRACLOUGH QC,1151115:146423399,34383.95,Legal Aid - Higher Crime
MINISTRY OF JUSTICE,0290 LAA,2/8/2017,Higher Crime,LEGAL AID FUND,PHILIP G HACKETT QC,1151248:146410327,70387.2,Legal Aid - Higher Crime
MINISTRY OF JUSTICE,0290 LAA,2/8/2017,Higher Crime,LEGAL AID FUND,CHARLES LANGLEY,1151255:146405764,30488.04,Legal Aid - Higher Crime
MINISTRY OF JUSTICE,0290 LAA,2/8/2017,Higher Crime,LEGAL AID FUND,ADAM V S KANE,1151345:146448087,128400,Legal Aid - Higher Crime
MINISTRY OF JUSTICE,0290 LAA,2/8/2017,Higher Crime,LEGAL AID FUND,ALISTER S WEBSTER QC,1151378:146426386,46099.99,Legal Aid - Higher Crime
MINISTRY OF JUSTICE,0290 LAA,2/8/2017,Civil Representation,LEGAL AID FUND,DENISE A GILLING,1151416:3000000480180028,28275.22,Legal Aid - Civil Representation
MINISTRY OF JUSTICE,0290 LAA,2/8/2017,Civil Representation,LEGAL AID FUND,ALISON WOODWARD,1151519:3000000671670070,29522.93,Legal Aid - Civil Representation
MINISTRY OF JUSTICE,0290 LAA,2/8/2017,Higher Crime,LEGAL AID FUND,JANICK FIELDING,1151632:146405275,49153.56,Legal Aid - Higher Crime
MINISTRY OF JUSTICE,0290 LAA,2/8/2017,Civil Representation,LEGAL AID FUND,CLARE COLES,1151655:3000000940060024,40461.26,Legal Aid - Civil Representation
MINISTRY OF JUSTICE,0290 LAA,2/8/2017,Higher Crime,LEGAL AID FUND,ANDREW J HOPE,1151753:146413315,31520.06,Legal Aid - Higher Crime
MINISTRY OF JUSTICE,0290 LAA,2/8/2017,Higher Crime,LEGAL AID FUND,MICHAEL GOMULKA QC,1151783:146458902,89120,Legal Aid - Higher Crime
MINISTRY OF JUSTICE,0290 LAA,2/8/2017,Higher Crime,LEGAL AID FUND,ALEXANDER CAMERON QC,1151794:146417903,128400,Legal Aid - Higher Crime
MINISTRY OF JUSTICE,0290 LAA,2/8/2017,Higher Crime,LEGAL AID FUND,STEPHEN M A KAMLISH QC,1151814:146405571,31929.32,Legal Aid - Higher Crime
MINISTRY OF JUSTICE,0290 LAA,2/8/2017,Higher Crime,LEGAL AID FUND,STEPHEN M A KAMLISH QC,1151814:146413233,48665.08,Legal Aid - Higher Crime
MINISTRY OF JUSTICE,0290 LAA,2/8/2017,Higher Crime,LEGAL AID FUND,HEDLEY SOLICITORS,1151921:146423846,43742.86,Legal Aid - Higher Crime
MINISTRY OF JUSTICE,0290 LAA,2/8/2017,Civil Representation,LEGAL AID FUND,FOUNTAIN SOLICITORS LTD,1151944:3000000600390003,35522.02,Legal Aid - Civil Representation
MINISTRY OF JUSTICE,0290 LAA,2/8/2017,Higher Crime,LEGAL AID FUND,HEALEY COLBON,1151976:146405649,90546.75,Legal Aid - Higher Crime
MINISTRY OF JUSTICE,0290 LAA,2/8/2017,Higher Crime,LEGAL AID FUND,SOLOMON LAW SOLICITORS LTD,1151999:146432092,49729.07,Legal Aid - Higher Crime
MINISTRY OF JUSTICE,0290 LAA,2/8/2017,Higher Crime,LEGAL AID FUND,SMITH PARTNERSHIP,1152027:146413464,29258.96,Legal Aid - Higher Crime
MINISTRY OF JUSTICE,0290 LAA,2/8/2017,Higher Crime,LEGAL AID FUND,DAVID GRAY LLP,1152043:146431673,60185.26,Legal Aid - Higher Crime
MINISTRY OF JUSTICE,0290 LAA,2/8/2017,Higher Crime,LEGAL AID FUND,ABBEY SOLICITORS,1152074:146453214,57859.92,Legal Aid - Higher Crime
MINISTRY OF JUSTICE,0290 LAA,2/8/2017,Higher Crime,LEGAL AID FUND,TAYLOR HALDANE BARLEX LLP,1152125:146453122,86379.14,Legal Aid - Higher Crime
MINISTRY OF JUSTICE,0290 LAA,2/8/2017,Higher Crime,LEGAL AID FUND,SHAW GRAHAM KERSH,1152126:146423290,41709.68,Legal Aid - Higher Crime
MINISTRY OF JUSTICE,0290 LAA,2/8/2017,Higher Crime,LEGAL AID FUND,FARADAYS SOLICITORS LTD,1152137:146431996,34195.82,Legal Aid - Higher Crime
MINISTRY OF JUSTICE,0290 LAA,2/8/2017,Higher Crime,LEGAL AID FUND,FARADAYS SOLICITORS LTD,1152137:146432233,94293.54,Legal Aid - Higher Crime
MINISTRY OF JUSTICE,0290 LAA,2/8/2017,Higher Crime,LEGAL AID FUND,CLARKE KIERNAN LLP,1152146:146405222,66969.66,Legal Aid - Higher Crime
MINISTRY OF JUSTICE,0290 LAA,2/8/2017,Civil Representation,LEGAL AID FUND,HOGANS,1152147:3000000827570013,33676.45,Legal Aid - Civil Representation
MINISTRY OF JUSTICE,0290 LAA,2/8/2017,Higher Crime,LEGAL AID FUND,QUINN MELVILLE,1152152:146423575,79091.78,Legal Aid - Higher Crime
MINISTRY OF JUSTICE,0290 LAA,2/8/2017,Higher Crime,LEGAL AID FUND,QUINN MELVILLE,1152152:146453168,35597.46,Legal Aid - Higher Crime
MINISTRY OF JUSTICE,0290 LAA,2/8/2017,Civil Representation,LEGAL AID FUND,MORTIMERS SOLICITORS,1152160:146263776,31533.41,Legal Aid - Civil Representation
MINISTRY OF JUSTICE,0290 LAA,2/8/2017,Higher Crime,LEGAL AID FUND,MORDI & CO,1152191:146453213,85935.47,Legal Aid - Higher Crime
MINISTRY OF JUSTICE,0290 LAA,2/8/2017,Higher Crime,LEGAL AID FUND,PAUL CROWLEY & CO SOLICITORS LTD,1152199:146432520,33065.18,Legal Aid - Higher Crime
MINISTRY OF JUSTICE,0290 LAA,2/8/2017,Higher Crime,LEGAL AID FUND,DRAYCOTT BROWNE LTD,1152262:146454135,67726.7,Legal Aid - Higher Crime
MINISTRY OF JUSTICE,0290 LAA,2/8/2017,Higher Crime,LEGAL AID FUND,BIVONAS LLP,1152312:146460694,54647.93,Legal Aid - Higher Crime
MINISTRY OF JUSTICE,0290 LAA,2/8/2017,Civil Representation,LEGAL AID FUND,TOZERS LLP,1152317:3000001107190010,26924.04,Legal Aid - Civil Representation
MINISTRY OF JUSTICE,0290 LAA,2/8/2017,Civil Representation,LEGAL AID FUND,THE RINGROSE LAW,1152318:3000000444550102,39492.14,Legal Aid - Civil Representation
MINISTRY OF JUSTICE,0290 LAA,2/8/2017,Higher Crime,LEGAL AID FUND,JOSEPH HILL & CO,1152332:146432269,81347.36,Legal Aid - Higher Crime
MINISTRY OF JUSTICE,0290 LAA,2/8/2017,Higher Crime,LEGAL AID FUND,GARTSIDES,1152519:146413612,25557.34,Legal Aid - Higher Crime
MINISTRY OF JUSTICE,0290 LAA,2/8/2017,Higher Crime,LEGAL AID FUND,ARORA LODHI HEATH,1152540:146431677,72116.12,Legal Aid - Higher Crime
MINISTRY OF JUSTICE,0290 LAA,2/8/2017,Civil Representation,LEGAL AID FUND,T A MATTHEWS,1152544:3000000469240021,36608.93,Legal Aid - Civil Representation
MINISTRY OF JUSTICE,0290 LAA,2/8/2017,Higher Crime,LEGAL AID FUND,HODGE JONES & ALLEN LLP,1152575:146453153,107574.07,Legal Aid - Higher Crime
MINISTRY OF JUSTICE,0290 LAA,2/8/2017,Higher Crime,LEGAL AID FUND,J D SPICER ZEB,1152577:146453230,34665.19,Legal Aid - Higher Crime
MINISTRY OF JUSTICE,0290 LAA,2/8/2017,Higher Crime,LEGAL AID FUND,IMRAN KHAN & PARTNERS,1152586:146422812,36112.75,Legal Aid - Higher Crime
MINISTRY OF JUSTICE,0290 LAA,2/8/2017,Civil Representation,LEGAL AID FUND,FOOTNER & EWING,1152621:146449136,37695,Legal Aid - Civil Representation
MINISTRY OF JUSTICE,0290 LAA,2/8/2017,Higher Crime,LEGAL AID FUND,STOKOE PARTNERSHIP,1152639:146419213,232679.75,Legal Aid - Higher Crime
MINISTRY OF JUSTICE,0290 LAA,2/8/2017,Higher Crime,LEGAL AID FUND,BLACKFORDS LLP,1152650:146449617,25810.9,Legal Aid - Higher Crime
MINISTRY OF JUSTICE,0290 LAA,2/8/2017,Higher Crime,LEGAL AID FUND,FARADAYS SOLICITORS LTD,1152137:146432221,94293.54,Legal Aid - Higher Crime
MINISTRY OF JUSTICE,0290 LAA,2/8/2017,Higher Crime,LEGAL AID FUND,MAIDMENTS LTD,1150290:146418140,49027.33,Legal Aid - Higher Crime
MINISTRY OF JUSTICE,0290 LAA,2/8/2017,Civil Representation,LEGAL AID FUND,BINDMANS LLP,1150046:146418801,42493.8,Legal Aid - Civil Representation
MINISTRY OF JUSTICE,0290 LAA,2/8/2017,Higher Crime,LEGAL AID FUND,PAUL CROWLEY & CO SOLICITORS LTD,1152199:146432522,33065.18,Legal Aid - Higher Crime
MINISTRY OF JUSTICE,0290 LAA,2/8/2017,Civil Representation,LEGAL AID FUND,FORBES SOLICITORS,1150057:146417478,29520,Legal Aid - Civil Representation
MINISTRY OF JUSTICE,0290 LAA,2/8/2017,Civil Representation,LEGAL AID FUND,TOZERS LLP,1152317:3000001107190009RC,25031.82,Legal Aid - Civil Representation
Ministry of Justice,0290 LAA,2/15/2017,5224100011-EXP - PURCHASE OF GOODS/SERVICES - PURCHASE PRICE VARIANCE,10295001-Centralised Costs,MYCSP LTD,7955,30712.9,Centralised Costs
MINISTRY OF JUSTICE,0290 LAA,2/15/2017,Higher Crime,LEGAL AID FUND,LAUREN SALES,1153125:146490883,25078.2,Legal Aid - Higher Crime
MINISTRY OF JUSTICE,0290 LAA,2/15/2017,Higher Crime,LEGAL AID FUND,THE JOHNSON PARTNERSHIP,1153131:146483192,39527.87,Legal Aid - Higher Crime
MINISTRY OF JUSTICE,0290 LAA,2/15/2017,Higher Crime,LEGAL AID FUND,GARETH P BELLIS,1153226:146482264,36809.4,Legal Aid - Higher Crime
MINISTRY OF JUSTICE,0290 LAA,2/15/2017,Higher Crime,LEGAL AID FUND,MARTIN MURRAY & ASSOCIATES-ADVOCATE,1153372:146474082,33870.89,Legal Aid - Higher Crime
MINISTRY OF JUSTICE,0290 LAA,2/15/2017,Higher Crime,LEGAL AID FUND,PIERS MARQUIS,1153422:146508011,32176.44,Legal Aid - Higher Crime
MINISTRY OF JUSTICE,0290 LAA,2/15/2017,Higher Crime,LEGAL AID FUND,KEVIN I TOOMEY,1153442:146482848,32921.78,Legal Aid - Higher Crime
MINISTRY OF JUSTICE,0290 LAA,2/15/2017,Civil Representation,LEGAL AID FUND,LUCY E LEADER,1153489:3000001368720005,26524.8,Legal Aid - Civil Representation
MINISTRY OF JUSTICE,0290 LAA,2/15/2017,Civil Representation,LEGAL AID FUND,RHYS M JONES,1153493:3000001200740012,26524.8,Legal Aid - Civil Representation
MINISTRY OF JUSTICE,0290 LAA,2/15/2017,Higher Crime,LEGAL AID FUND,JOHN A CAUDLE,1153505:146464439,38149.97,Legal Aid - Higher Crime
MINISTRY OF JUSTICE,0290 LAA,2/15/2017,Higher Crime,LEGAL AID FUND,PAUL S BOGAN,1153640:146504339,112440,Legal Aid - Higher Crime
MINISTRY OF JUSTICE,0290 LAA,2/15/2017,Higher Crime,LEGAL AID FUND,S ORLANDO F POWNALL QC,1153667:146490373,30589.81,Legal Aid - Higher Crime
MINISTRY OF JUSTICE,0290 LAA,2/15/2017,Civil Representation,LEGAL AID FUND,MARY ROBERTSON,1153672:146513817,87903.72,Legal Aid - Civil Representation
MINISTRY OF JUSTICE,0290 LAA,2/15/2017,Civil Representation,LEGAL AID FUND,ELIZABETH ISAACS QC,1153795:3000001368720006,34927.2,Legal Aid - Civil Representation
MINISTRY OF JUSTICE,0290 LAA,2/15/2017,Higher Crime,LEGAL AID FUND,PIERS N MOSTYN,1153838:146465351,26603.98,Legal Aid - Higher Crime
MINISTRY OF JUSTICE,0290 LAA,2/15/2017,Higher Crime,LEGAL AID FUND,RICHARD WORMALD,1153843:146508487,32316.6,Legal Aid - Higher Crime
MINISTRY OF JUSTICE,0290 LAA,2/15/2017,Higher Crime,LEGAL AID FUND,ROMANO FERRARI & CO,1153908:140557919,52549.65,Legal Aid - Higher Crime
MINISTRY OF JUSTICE,0290 LAA,2/15/2017,Higher Crime,LEGAL AID FUND,LLOYDS PR SOLICITORS,1153921:146464502,29473.49,Legal Aid - Higher Crime
MINISTRY OF JUSTICE,0290 LAA,2/15/2017,Higher Crime,LEGAL AID FUND,LLOYDS PR SOLICITORS,1153921:146483168,107574.07,Legal Aid - Higher Crime
MINISTRY OF JUSTICE,0290 LAA,2/15/2017,Higher Crime,LEGAL AID FUND,HUSSAIN SOLICITORS LTD,1153984:146465611,89975.11,Legal Aid - Higher Crime
MINISTRY OF JUSTICE,0290 LAA,2/15/2017,Higher Crime,LEGAL AID FUND,HUSSAIN SOLICITORS LTD,1153984:146474603,107574.07,Legal Aid - Higher Crime
MINISTRY OF JUSTICE,0290 LAA,2/15/2017,Higher Crime,LEGAL AID FUND,HUSSAIN SOLICITORS LTD,1153984:146490963,32184.01,Legal Aid - Higher Crime
MINISTRY OF JUSTICE,0290 LAA,2/15/2017,Higher Crime,LEGAL AID FUND,HUSSAIN SOLICITORS LTD,1153984:146507050,32364.53,Legal Aid - Higher Crime
MINISTRY OF JUSTICE,0290 LAA,2/15/2017,Higher Crime,LEGAL AID FUND,LLOYDS PR SOLICITORS,1153990:146483186,95707.01,Legal Aid - Higher Crime
MINISTRY OF JUSTICE,0290 LAA,2/15/2017,Civil Representation,LEGAL AID FUND,JWP SOLICITORS,1154020:146478697,41066.89,Legal Aid - Civil Representation
MINISTRY OF JUSTICE,0290 LAA,2/15/2017,Higher Crime,LEGAL AID FUND,BIRDS SOLICITORS LTD,1154029:146464522,27358.81,Legal Aid - Higher Crime
MINISTRY OF JUSTICE,0290 LAA,2/15/2017,Higher Crime,LEGAL AID FUND,TAYLOR GOODCHILD LTD,1154031:146474453,44587.6,Legal Aid - Higher Crime
MINISTRY OF JUSTICE,0290 LAA,2/15/2017,Higher Crime,LEGAL AID FUND,JONAS ROY BLOOM,1154033:146483270,27572.88,Legal Aid - Higher Crime
MINISTRY OF JUSTICE,0290 LAA,2/15/2017,Civil Representation,LEGAL AID FUND,PEPPERELLS SOLICITORS,1154051:3000001590040006,31179.6,Legal Aid - Civil Representation
MINISTRY OF JUSTICE,0290 LAA,2/15/2017,Civil Representation,LEGAL AID FUND,GRAHAME STOWE BATESON,1154065:146487241,49819.15,Legal Aid - Civil Representation
MINISTRY OF JUSTICE,0290 LAA,2/15/2017,Higher Crime,LEGAL AID FUND,MARY MONSON SOLICITORS,1154125:146474208,40129.9,Legal Aid - Higher Crime
MINISTRY OF JUSTICE,0290 LAA,2/15/2017,Lower Crime,LEGAL AID FUND,SJ LAW,1154141:146504295,49000,Legal Aid - Lower Crime
MINISTRY OF JUSTICE,0290 LAA,2/15/2017,Civil Representation,LEGAL AID FUND,WILKINSON WOODWARD.,1154164:3000000990890007,34184.81,Legal Aid - Civil Representation
MINISTRY OF JUSTICE,0290 LAA,2/15/2017,Civil Representation,LEGAL AID FUND,MILES & PARTNERS LLP,1154186:146477269,25748.03,Legal Aid - Civil Representation
MINISTRY OF JUSTICE,0290 LAA,2/15/2017,Civil Representation,LEGAL AID FUND,MILES & PARTNERS LLP,1154186:146478563,26878.75,Legal Aid - Civil Representation
MINISTRY OF JUSTICE,0290 LAA,2/15/2017,Civil Representation,LEGAL AID FUND,JONES MYERS LLP,1154238:3000000778100006,25488,Legal Aid - Civil Representation
MINISTRY OF JUSTICE,0290 LAA,2/15/2017,Higher Crime,LEGAL AID FUND,FABER & CO,1154275:146483276,90667.44,Legal Aid - Higher Crime
MINISTRY OF JUSTICE,0290 LAA,2/15/2017,Higher Crime,LEGAL AID FUND,WHITFIELDS SOLICITORS LTD,1154355:146507082,46174.36,Legal Aid - Higher Crime
MINISTRY OF JUSTICE,0290 LAA,2/15/2017,Higher Crime,LEGAL AID FUND,EDWARD FAIL BRADSHAW & WATERSON,1154395:146491331,105857.75,Legal Aid - Higher Crime
MINISTRY OF JUSTICE,0290 LAA,2/15/2017,Higher Crime,LEGAL AID FUND,HALLINAN BLACKBURN GITTINGS & NOTT,1154411:146483164,105857.75,Legal Aid - Higher Crime
MINISTRY OF JUSTICE,0290 LAA,2/15/2017,Higher Crime,LEGAL AID FUND,STOKOE PARTNERSHIP,1154421:146507148,26893.52,Legal Aid - Higher Crime
MINISTRY OF JUSTICE,0290 LAA,2/15/2017,Higher Crime,LEGAL AID FUND,BCL BURTON COPELAND,1154423:146477129,25277.79,Legal Aid - Higher Crime
MINISTRY OF JUSTICE,0290 LAA,2/15/2017,Higher Crime,LEGAL AID FUND,MARTIN MURRAY & ASSOCIATES,1154457:146465117,39590.48,Legal Aid - Higher Crime
MINISTRY OF JUSTICE,0290 LAA,2/15/2017,Higher Crime,LEGAL AID FUND,KATE MORLEY - 215GB,1154613:146482082,29719.8,Legal Aid - Higher Crime
MINISTRY OF JUSTICE,0290 LAA,2/15/2017,Civil Representation,LEGAL AID FUND,ANTHONY J N KIRK QC,1154649:144930974,47044.51,Legal Aid - Civil Representation
MINISTRY OF JUSTICE,0290 LAA,2/15/2017,Civil Representation,LEGAL AID FUND,ANTHONY J N KIRK QC,1154649:145460283,49678.27,Legal Aid - Civil Representation
MINISTRY OF JUSTICE,0290 LAA,2/15/2017,Civil Representation,LEGAL AID FUND,ANTHONY J N KIRK QC,1154649:146487916,51207.31,Legal Aid - Civil Representation
MINISTRY OF JUSTICE,0290 LAA,2/15/2017,Higher Crime,LEGAL AID FUND,HAYES LAW SOLICITORS AND ADVOCATES LLP,1154693:146465174,75848.77,Legal Aid - Higher Crime
MINISTRY OF JUSTICE,0290 LAA,2/15/2017,Civil Representation,LEGAL AID FUND,MARK E COOPER,1154732:3000001321540011,33048,Legal Aid - Civil Representation
MINISTRY OF JUSTICE,0290 LAA,2/15/2017,Higher Crime,LEGAL AID FUND,RODNEY WARREN & CO LTD-ADVOCATE,1154812:146490360,26468.08,Legal Aid - Higher Crime
MINISTRY OF JUSTICE,0290 LAA,2/15/2017,Higher Crime,LEGAL AID FUND,BARRY MYERS,1154861:146483043,34108.25,Legal Aid - Higher Crime
MINISTRY OF JUSTICE,0290 LAA,2/15/2017,Higher Crime,LEGAL AID FUND,MARK B RUFFELL,1154894:146465621,33032.38,Legal Aid - Higher Crime
MINISTRY OF JUSTICE,0290 LAA,2/15/2017,Civil Representation,LEGAL AID FUND,JACQUELINE L THOMAS,1154906:3000001101670039,37615.75,Legal Aid - Civil Representation
MINISTRY OF JUSTICE,0290 LAA,2/15/2017,Civil Representation,LEGAL AID FUND,REBECCA STOKES-HERBST,1154958:3000000108390014,29430,Legal Aid - Civil Representation
MINISTRY OF JUSTICE,0290 LAA,2/15/2017,Higher Crime,LEGAL AID FUND,COLIN C AYLOTT,1155021:146491263,31482.83,Legal Aid - Higher Crime
MINISTRY OF JUSTICE,0290 LAA,2/15/2017,Higher Crime,LEGAL AID FUND,THOMAS M C ALLEN,1155042:146471417,70960.01,Legal Aid - Higher Crime
MINISTRY OF JUSTICE,0290 LAA,2/15/2017,Higher Crime,LEGAL AID FUND,BOB A D SASTRY,1155267:146487731,63240,Legal Aid - Higher Crime
MINISTRY OF JUSTICE,0290 LAA,2/15/2017,Higher Crime,LEGAL AID FUND,PAUL G HODGKINSON,1155283:146512346,63240,Legal Aid - Higher Crime
MINISTRY OF JUSTICE,0290 LAA,2/15/2017,Higher Crime,LEGAL AID FUND,HUGH A MCKEE,1155291:146469616,89120,Legal Aid - Higher Crime
MINISTRY OF JUSTICE,0290 LAA,2/15/2017,Higher Crime,LEGAL AID FUND,KHAN'S LAW FIRM LTD TA KK & CO,1155337:146465492,47731.36,Legal Aid - Higher Crime
MINISTRY OF JUSTICE,0290 LAA,2/15/2017,Higher Crime,LEGAL AID FUND,KHAN'S LAW FIRM LTD TA KK & CO,1155337:146491431,56128.68,Legal Aid - Higher Crime
MINISTRY OF JUSTICE,0290 LAA,2/15/2017,Higher Crime,LEGAL AID FUND,HARRIS SOLICITORS,1155338:146490926,40673.69,Legal Aid - Higher Crime
MINISTRY OF JUSTICE,0290 LAA,2/15/2017,Higher Crime,LEGAL AID FUND,HEDLEY SOLICITORS,1155393:146482280,53793.58,Legal Aid - Higher Crime
MINISTRY OF JUSTICE,0290 LAA,2/15/2017,Higher Crime,LEGAL AID FUND,CORPER SOLICITORS,1155398:146508342,61472.7,Legal Aid - Higher Crime
MINISTRY OF JUSTICE,0290 LAA,2/15/2017,Higher Crime,LEGAL AID FUND,K A SOLICITORS,1155411:146490632,30072,Legal Aid - Higher Crime
MINISTRY OF JUSTICE,0290 LAA,2/15/2017,Higher Crime,LEGAL AID FUND,FORTIS ROSE SOLICITORS LTD,1155413:146483320,107574.07,Legal Aid - Higher Crime
MINISTRY OF JUSTICE,0290 LAA,2/15/2017,Higher Crime,LEGAL AID FUND,I B B SOLICITORS,1155436:146507023,26820.01,Legal Aid - Higher Crime
MINISTRY OF JUSTICE,0290 LAA,2/15/2017,Higher Crime,LEGAL AID FUND,STERNBERG REED SOLICITORS,1155491:146483284,78454.08,Legal Aid - Higher Crime
MINISTRY OF JUSTICE,0290 LAA,2/15/2017,Higher Crime,LEGAL AID FUND,DUNCAN LEWIS SOLICITORS  LTD,1155563:146464751,97616.83,Legal Aid - Higher Crime
MINISTRY OF JUSTICE,0290 LAA,2/15/2017,Higher Crime,LEGAL AID FUND,O'GARRA'S SOLICITORS,1155594:146490440,25018.09,Legal Aid - Higher Crime
MINISTRY OF JUSTICE,0290 LAA,2/15/2017,Higher Crime,LEGAL AID FUND,ELLIOTT STERN SOLICITORS,1155596:146508747,69214,Legal Aid - Higher Crime
MINISTRY OF JUSTICE,0290 LAA,2/15/2017,Higher Crime,LEGAL AID FUND,OLLIERS SOLICITORS LTD,1155597:146482678,30087.36,Legal Aid - Higher Crime
MINISTRY OF JUSTICE,0290 LAA,2/15/2017,Higher Crime,LEGAL AID FUND,OLLIERS SOLICITORS LTD,1155597:146491247,68065.99,Legal Aid - Higher Crime
MINISTRY OF JUSTICE,0290 LAA,2/15/2017,Civil Representation,LEGAL AID FUND,FINN GLEDHILL,1155613:146502279,58050,Legal Aid - Civil Representation
MINISTRY OF JUSTICE,0290 LAA,2/15/2017,Civil Representation,LEGAL AID FUND,MASON BAGGOTT & GARTON,1155622:3000000615510016,40478.4,Legal Aid - Civil Representation
MINISTRY OF JUSTICE,0290 LAA,2/15/2017,Civil Representation,LEGAL AID FUND,HARRIS TEMPERLEY LLP,1155668:146450968,52618.64,Legal Aid - Civil Representation
MINISTRY OF JUSTICE,0290 LAA,2/15/2017,Higher Crime,LEGAL AID FUND,MACAULEY SMITH  LTD,1155689:146474569,33433.25,Legal Aid - Higher Crime
MINISTRY OF JUSTICE,0290 LAA,2/15/2017,Civil Representation,LEGAL AID FUND,BRIDGE MCFARLAND,1155696:3000000738360047,60003.9,Legal Aid - Civil Representation
MINISTRY OF JUSTICE,0290 LAA,2/15/2017,Higher Crime,LEGAL AID FUND,KHAN SOLICITORS LTD,1155697:146507089,95707.01,Legal Aid - Higher Crime
MINISTRY OF JUSTICE,0290 LAA,2/15/2017,Higher Crime,LEGAL AID FUND,RUSSELL & RUSSELL SOLICITORS,1155761:146464742,48800.44,Legal Aid - Higher Crime
MINISTRY OF JUSTICE,0290 LAA,2/15/2017,Civil Representation,LEGAL AID FUND,RUSSELL & RUSSELL SOLICITORS,1155761:146511405,29526.34,Legal Aid - Civil Representation
MINISTRY OF JUSTICE,0290 LAA,2/15/2017,Higher Crime,LEGAL AID FUND,DONALD RACE & NEWTON SOLICITORS,1155766:146465407,48236.47,Legal Aid - Higher Crime
MINISTRY OF JUSTICE,0290 LAA,2/15/2017,Higher Crime,LEGAL AID FUND,LEWIS NEDAS LAW LTD,1155858:146483248,72183.34,Legal Aid - Higher Crime
MINISTRY OF JUSTICE,0290 LAA,2/15/2017,Civil Representation,LEGAL AID FUND,SLEE BLACKWELL,1155888:3000000494800040,32394.15,Legal Aid - Civil Representation
MINISTRY OF JUSTICE,0290 LAA,2/15/2017,Higher Crime,LEGAL AID FUND,BUKI DUNBAR,1156024:146507560,26266.72,Legal Aid - Higher Crime
MINISTRY OF JUSTICE,0290 LAA,2/15/2017,Civil Representation,LEGAL AID FUND,MAYA SOLICITORS,1156083:3000000635450023,33859.13,Legal Aid - Civil Representation
MINISTRY OF JUSTICE,0290 LAA,2/15/2017,Higher Crime,LEGAL AID FUND,REEDS SOLICITORS LTD-ADVOCATE,1156215:146507674,25548.46,Legal Aid - Higher Crime
MINISTRY OF JUSTICE,0290 LAA,2/15/2017,Civil Representation,LEGAL AID FUND,ALISON S GRIEF,1156305:146504978,27442.8,Legal Aid - Civil Representation
MINISTRY OF JUSTICE,0290 LAA,2/15/2017,Civil Representation,LEGAL AID FUND,SAMANTHA L KING,1156307:146477725,29128.8,Legal Aid - Civil Representation
MINISTRY OF JUSTICE,0290 LAA,2/15/2017,Civil Representation,LEGAL AID FUND,YVONNE SUTHERLAND,1156339:146225394,42664.32,Legal Aid - Civil Representation
MINISTRY OF JUSTICE,0290 LAA,2/15/2017,Higher Crime,LEGAL AID FUND,WILLIAM E BEARDMORE,1156401:146482154,37105.8,Legal Aid - Higher Crime
MINISTRY OF JUSTICE,0290 LAA,2/15/2017,Higher Crime,LEGAL AID FUND,KIERAN F MAIDMENT,1156437:146473545,32156.52,Legal Aid - Higher Crime
MINISTRY OF JUSTICE,0290 LAA,2/15/2017,Higher Crime,LEGAL AID FUND,DAVID BIRRELL,1156472:146504314,63240,Legal Aid - Higher Crime
MINISTRY OF JUSTICE,0290 LAA,2/15/2017,Civil Representation,LEGAL AID FUND,NICHOLAS A J GOODWIN,1156487:146449303,62359.2,Legal Aid - Civil Representation
MINISTRY OF JUSTICE,0290 LAA,2/15/2017,Civil Representation,LEGAL AID FUND,NICHOLAS A J GOODWIN,1156487:3000001085810026,37422,Legal Aid - Civil Representation
MINISTRY OF JUSTICE,0290 LAA,2/15/2017,Civil Representation,LEGAL AID FUND,JOANNE ASTBURY,1156505:3000000723830013,37432.8,Legal Aid - Civil Representation
MINISTRY OF JUSTICE,0290 LAA,2/15/2017,Civil Representation,LEGAL AID FUND,EMMA SOUTHERN,1156506:146301227,31522.44,Legal Aid - Civil Representation
MINISTRY OF JUSTICE,0290 LAA,2/15/2017,Civil Representation,LEGAL AID FUND,EMMA SOUTHERN,1156506:146486992,35376,Legal Aid - Civil Representation
MINISTRY OF JUSTICE,0290 LAA,2/15/2017,Higher Crime,LEGAL AID FUND,TOM B WATSON,1156514:146507550,37105.8,Legal Aid - Higher Crime
MINISTRY OF JUSTICE,0290 LAA,2/15/2017,Higher Crime,LEGAL AID FUND,JOHN PRICE QC,1156565:146490830,42524.65,Legal Aid - Higher Crime
MINISTRY OF JUSTICE,0290 LAA,2/15/2017,Higher Crime,LEGAL AID FUND,CAIRNS L D NELSON QC,1156568:146485780,112440,Legal Aid - Higher Crime
MINISTRY OF JUSTICE,0290 LAA,2/15/2017,Civil Representation,LEGAL AID FUND,KATIE A HARRIS,1156654:3000001302350019,29697.42,Legal Aid - Civil Representation
MINISTRY OF JUSTICE,0290 LAA,2/15/2017,Civil Representation,LEGAL AID FUND,KAMBIZ MORADIFAR,1156778:146486981,28910.1,Legal Aid - Civil Representation
MINISTRY OF JUSTICE,0290 LAA,2/15/2017,Higher Crime,LEGAL AID FUND,JUSTIN C D ROUSE,1156800:146487739,204520,Legal Aid - Higher Crime
MINISTRY OF JUSTICE,0290 LAA,2/15/2017,Higher Crime,LEGAL AID FUND,BULLIVANT LAW LTD,1156869:146507097,74888.52,Legal Aid - Higher Crime
MINISTRY OF JUSTICE,0290 LAA,2/15/2017,Civil Representation,LEGAL AID FUND,LEGAL SERVICES FOR CHILDREN,1156878:3000000992340011,29165.91,Legal Aid - Civil Representation
MINISTRY OF JUSTICE,0290 LAA,2/15/2017,Higher Crime,LEGAL AID FUND,DPP LAW LTD,1156890:146490350,56861.93,Legal Aid - Higher Crime
MINISTRY OF JUSTICE,0290 LAA,2/15/2017,Civil Representation,LEGAL AID FUND,MAKIN DIXON SOLICITORS LTD,1156909:146502493,46966.3,Legal Aid - Civil Representation
MINISTRY OF JUSTICE,0290 LAA,2/15/2017,Higher Crime,LEGAL AID FUND,LEVY & CO SOLICITORS LLP,1156910:146483093,28400.2,Legal Aid - Higher Crime
MINISTRY OF JUSTICE,0290 LAA,2/15/2017,Higher Crime,LEGAL AID FUND,MAGUIRES SOLICITORS LTD,1156916:146491282,26629.86,Legal Aid - Higher Crime
MINISTRY OF JUSTICE,0290 LAA,2/15/2017,Higher Crime,LEGAL AID FUND,LIBERTY LAW SOLICITORS LTD,1156940:146482991,41948.03,Legal Aid - Higher Crime
MINISTRY OF JUSTICE,0290 LAA,2/15/2017,Higher Crime,LEGAL AID FUND,HUMPHRYS DAWSON,1156978:146490855,76436.3,Legal Aid - Higher Crime
MINISTRY OF JUSTICE,0290 LAA,2/15/2017,Civil Representation,LEGAL AID FUND,TURPIN & MILLER LLP,1157006:146449291,67311.1,Legal Aid - Civil Representation
MINISTRY OF JUSTICE,0290 LAA,2/15/2017,Civil Representation,LEGAL AID FUND,HEPBURN DELANEY,1157094:3000000629190009,25896.09,Legal Aid - Civil Representation
MINISTRY OF JUSTICE,0290 LAA,2/15/2017,Higher Crime,LEGAL AID FUND,YATES ARDERN,1157135:146464930,52704.13,Legal Aid - Higher Crime
MINISTRY OF JUSTICE,0290 LAA,2/15/2017,Higher Crime,LEGAL AID FUND,TUCKERS SOLICITORS LLP,1157153:146465443,35731.74,Legal Aid - Higher Crime
MINISTRY OF JUSTICE,0290 LAA,2/15/2017,Higher Crime,LEGAL AID FUND,TUCKERS SOLICITORS LLP,1157153:146482797,36604.51,Legal Aid - Higher Crime
MINISTRY OF JUSTICE,0290 LAA,2/15/2017,Civil Representation,LEGAL AID FUND,HATHAWAYS THE LAW FIRM LTD,1157190:146254219,36775.5,Legal Aid - Civil Representation
MINISTRY OF JUSTICE,0290 LAA,2/15/2017,Higher Crime,LEGAL AID FUND,YARWOOD & STUBLEY,1157205:146473971,27313.22,Legal Aid - Higher Crime
MINISTRY OF JUSTICE,0290 LAA,2/15/2017,Higher Crime,LEGAL AID FUND,DAVID RUBIE MITCHELL & CO,1157256:146483252,62042.07,Legal Aid - Higher Crime
MINISTRY OF JUSTICE,0290 LAA,2/15/2017,Higher Crime,LEGAL AID FUND,KTP SOLICITORS,1157305:146491130,29204.06,Legal Aid - Higher Crime
MINISTRY OF JUSTICE,0290 LAA,2/15/2017,Civil Representation,LEGAL AID FUND,HALL SMITH WHITTINGHAM LLP,1157333:300000100919RC373,40236.24,Legal Aid - Civil Representation
MINISTRY OF JUSTICE,0290 LAA,2/15/2017,Civil Representation,LEGAL AID FUND,MARY ROBERTSON,1153672:146513836,85708.8,Legal Aid - Civil Representation
MINISTRY OF JUSTICE,0290 LAA,2/15/2017,Civil Representation,LEGAL AID FUND,NICHOLAS A J GOODWIN,1156487:146468064,52077.6,Legal Aid - Civil Representation
MINISTRY OF JUSTICE,0290 LAA,2/15/2017,Civil Representation,LEGAL AID FUND,ANTHONY J N KIRK QC,1154649:144943371,51207.31,Legal Aid - Civil Representation
MINISTRY OF JUSTICE,0290 LAA,2/15/2017,Civil Representation,LEGAL AID FUND,ANTHONY J N KIRK QC,1154649:146487917,49678.27,Legal Aid - Civil Representation
MINISTRY OF JUSTICE,0290 LAA,2/15/2017,Civil Representation,LEGAL AID FUND,ANTHONY J N KIRK QC,1154649:145460284,47044.51,Legal Aid - Civil Representation
MINISTRY OF JUSTICE,0290 LAA,2/15/2017,Civil Representation,LEGAL AID FUND,MAKIN DIXON SOLICITORS LTD,1156909:146502495,46976.3,Legal Aid - Civil Representation
MINISTRY OF JUSTICE,0290 LAA,2/15/2017,Civil Representation,LEGAL AID FUND,YVONNE SUTHERLAND,1156339:146253692,43841.52,Legal Aid - Civil Representation
MINISTRY OF JUSTICE,0290 LAA,2/15/2017,Civil Representation,LEGAL AID FUND,EMMA SOUTHERN,1156506:146317031,35675.24,Legal Aid - Civil Representation
MINISTRY OF JUSTICE,0290 LAA,2/15/2017,Civil Representation,LEGAL AID FUND,EMMA SOUTHERN,1156506:146486571,31522.44,Legal Aid - Civil Representation
MINISTRY OF JUSTICE,0290 LAA,2/15/2017,Civil Representation,LEGAL AID FUND,KAMBIZ MORADIFAR,1156778:146486573,28910.1,Legal Aid - Civil Representation
MINISTRY OF JUSTICE,0290 LAA,2/15/2017,Civil Representation,LEGAL AID FUND,KERRY L BRETHERTON,1156562:146178736,26966.25,Legal Aid - Civil Representation
MINISTRY OF JUSTICE,0290 LAA,2/15/2017,Civil Representation,LEGAL AID FUND,JWP SOLICITORS,1154020:146478808,26032.35,Legal Aid - Civil Representation
MINISTRY OF JUSTICE,0290 LAA,2/15/2017,Civil Representation,LEGAL AID FUND,TURPIN & MILLER LLP,1157006:146468066,25380,Legal Aid - Civil Representation
Ministry of Justice,0290 LAA,2/16/2017,5219702004-EXP - PURCHASE OF GOODS/SERVICES - OTHER TRAVEL - UK Other,10292001-Financial Management,REDFERN TRAVEL LTD,2850,-44692.19,Travel Costs
Ministry of Justice,0290 LAA,2/16/2017,5219702004-EXP - PURCHASE OF GOODS/SERVICES - OTHER TRAVEL - UK Other,10292001-Financial Management,REDFERN TRAVEL LTD,2850,80.22,Travel Costs
Ministry of Justice,0290 LAA,2/16/2017,5219702004-EXP - PURCHASE OF GOODS/SERVICES - OTHER TRAVEL - UK Other,10292001-Financial Management,REDFERN TRAVEL LTD,2850,44625.34,Travel Costs
Ministry of Justice,0290 LAA,2/16/2017,5219702004-EXP - PURCHASE OF GOODS/SERVICES - OTHER TRAVEL - UK Other,10292001-Financial Management,REDFERN TRAVEL LTD,2850,44692.19,Travel Costs
Ministry of Justice,0290 LAA,2/20/2017,5218102002-EXP - PURCHASE OF GOODS/SERVICES - ICT OUTSOURCING & MAINT./SUPPORT - Application Maintenance and Support,10292001-Financial Management,ATOS IT SERVICES UK LTD,5584224342,406307.14,IT Outsourcing and application mtce
MINISTRY OF JUSTICE,0290 LAA,2/20/2017,Civil Representation,LEGAL AID FUND,NICHOLAS W STONOR,1157360:100000047532DC06,47088,Legal Aid - Civil Representation
MINISTRY OF JUSTICE,0290 LAA,2/20/2017,Civil Representation,LEGAL AID FUND,CARLY E HENLEY,1157436:146487227,32564.28,Legal Aid - Civil Representation
Ministry of Justice,0290 LAA,2/21/2017,5224102148-EXP - PURCHASE OF GOODS/SERVICES - OTHER - Translation / Interpreting Services,10281000-Central Funds,THEBIGWORD INTERPRETING SERVICES LTD,19,753381.98,Translation / Interpreting Serv
Ministry of Justice,0290 LAA,2/22/2017,5211402002-EXP - PURCHASE OF GOODS/SERVICES - OTHER PROFESSIONAL SERVICES - Legal Services - Third party legal costs,10290300-Legal,GOVERNMENT LEGAL DEPARTMENT,LAASOP6EX110003,28750,Third party legal costs
MINISTRY OF JUSTICE,0290 LAA,2/22/2017,Civil Representation,LEGAL AID FUND,HARNEY & WELLS,1157490:300000057327RC279,30309.86,Legal Aid - Civil Representation
MINISTRY OF JUSTICE,0290 LAA,2/22/2017,Higher Crime,LEGAL AID FUND,DANIEL C HARMAN,1157549:146559020,25358.16,Legal Aid - Higher Crime
MINISTRY OF JUSTICE,0290 LAA,2/22/2017,Higher Crime,LEGAL AID FUND,KIRANDEEP K CHANA,1157577:146525711,30881.47,Legal Aid - Higher Crime
MINISTRY OF JUSTICE,0290 LAA,2/22/2017,Higher Crime,LEGAL AID FUND,LLOYDS PR SOLICITORS-ADVOCATE,1157854:146526227,31191.29,Legal Aid - Higher Crime
MINISTRY OF JUSTICE,0290 LAA,2/22/2017,Higher Crime,LEGAL AID FUND,KARINA ARDEN,1157997:146558726,38760,Legal Aid - Higher Crime
MINISTRY OF JUSTICE,0290 LAA,2/22/2017,Higher Crime,LEGAL AID FUND,PHILIPPA C A EASTWOOD,1158014:146563692,37800,Legal Aid - Higher Crime
MINISTRY OF JUSTICE,0290 LAA,2/22/2017,Civil Representation,LEGAL AID FUND,DARREN F HOWE QC,1158046:3000000734540029,26970.96,Legal Aid - Civil Representation
MINISTRY OF JUSTICE,0290 LAA,2/22/2017,Civil Representation,LEGAL AID FUND,DARREN F HOWE QC,1158046:3000001158040010,29937.6,Legal Aid - Civil Representation
MINISTRY OF JUSTICE,0290 LAA,2/22/2017,Higher Crime,LEGAL AID FUND,CHRISTOPHER J W SMYTH,1158047:146522637,122560,Legal Aid - Higher Crime
MINISTRY OF JUSTICE,0290 LAA,2/22/2017,Higher Crime,LEGAL AID FUND,S ORLANDO F POWNALL QC,1158134:146525167,29541.77,Legal Aid - Higher Crime
MINISTRY OF JUSTICE,0290 LAA,2/22/2017,Higher Crime,LEGAL AID FUND,TYRONE BELGER,1158136:146541024,28865.09,Legal Aid - Higher Crime
MINISTRY OF JUSTICE,0290 LAA,2/22/2017,Higher Crime,LEGAL AID FUND,REBECCA HERBERT,1158146:146520878,64399.99,Legal Aid - Higher Crime
MINISTRY OF JUSTICE,0290 LAA,2/22/2017,Civil Representation,LEGAL AID FUND,JULIE A STATHER,1158303:146514071,44287.56,Legal Aid - Civil Representation
MINISTRY OF JUSTICE,0290 LAA,2/22/2017,Higher Crime,LEGAL AID FUND,MICHAEL G BROMLEY-MARTIN QC,1158336:146525562,26660.77,Legal Aid - Higher Crime
MINISTRY OF JUSTICE,0290 LAA,2/22/2017,Higher Crime,LEGAL AID FUND,MATTHEW A HEYWOOD,1158382:146558680,26474.64,Legal Aid - Higher Crime
MINISTRY OF JUSTICE,0290 LAA,2/22/2017,Legal Help,LEGAL AID FUND,T. A. LAW,1158392:146554965,27599.4,Legal Aid - Legal Help
MINISTRY OF JUSTICE,0290 LAA,2/22/2017,Legal Help,LEGAL AID FUND,SHELTER.,1158395:146530547,28554.94,Legal Aid - Legal Help
MINISTRY OF JUSTICE,0290 LAA,2/22/2017,Higher Crime,LEGAL AID FUND,KIRWANS,1158407:146557252,49729.07,Legal Aid - Higher Crime
MINISTRY OF JUSTICE,0290 LAA,2/22/2017,Higher Crime,LEGAL AID FUND,KIRWANS,1158407:146557256,27200.92,Legal Aid - Higher Crime
MINISTRY OF JUSTICE,0290 LAA,2/22/2017,Higher Crime,LEGAL AID FUND,L P EVANS SOLICITORS,1158425:146541841,89975.11,Legal Aid - Higher Crime
MINISTRY OF JUSTICE,0290 LAA,2/22/2017,Higher Crime,LEGAL AID FUND,SHAIKH AYUB SOLICITORS,1158434:146533402,70094.56,Legal Aid - Higher Crime
MINISTRY OF JUSTICE,0290 LAA,2/22/2017,Higher Crime,LEGAL AID FUND,KHAN SOLICITORS LTD,1158472:146517601,72372.67,Legal Aid - Higher Crime
MINISTRY OF JUSTICE,0290 LAA,2/22/2017,Legal Help,LEGAL AID FUND,DIRECT HELP & ADVICE LTD,1158495:146530540,26967.24,Legal Aid - Legal Help
MINISTRY OF JUSTICE,0290 LAA,2/22/2017,Higher Crime,LEGAL AID FUND,MCGRATH & CO SOLICITORS,1158500:146533195,39132.91,Legal Aid - Higher Crime
MINISTRY OF JUSTICE,0290 LAA,2/22/2017,Higher Crime,LEGAL AID FUND,BROADBENTS SOLICITORS LLP,1158515:146557547,30705.19,Legal Aid - Higher Crime
MINISTRY OF JUSTICE,0290 LAA,2/22/2017,Higher Crime,LEGAL AID FUND,SMITH PARTNERSHIP,1158518:146541315,25247.18,Legal Aid - Higher Crime
MINISTRY OF JUSTICE,0290 LAA,2/22/2017,Higher Crime,LEGAL AID FUND,COOMBER RICH LTD,1158599:146533481,26820.01,Legal Aid - Higher Crime
MINISTRY OF JUSTICE,0290 LAA,2/22/2017,Legal Help,LEGAL AID FUND,CORAM CHILDREN'S LEGAL CENTRE,1158629:146530535,104330.28,Legal Aid - Legal Help
MINISTRY OF JUSTICE,0290 LAA,2/22/2017,Civil Representation,LEGAL AID FUND,LANGLEYS LLP,1158658:146527580,29446.45,Legal Aid - Civil Representation
MINISTRY OF JUSTICE,0290 LAA,2/22/2017,Civil Representation,LEGAL AID FUND,HAY & KILNER,1158764:146562541,29615.21,Legal Aid - Civil Representation
MINISTRY OF JUSTICE,0290 LAA,2/22/2017,Higher Crime,LEGAL AID FUND,REEDS SOLICITORS LTD,1159068:146557707,29725.94,Legal Aid - Higher Crime
MINISTRY OF JUSTICE,0290 LAA,2/22/2017,Higher Crime,LEGAL AID FUND,VICTORIA KERLY,1159149:146526219,26666.69,Legal Aid - Higher Crime
MINISTRY OF JUSTICE,0290 LAA,2/22/2017,Higher Crime,LEGAL AID FUND,RODNEY WARREN & CO LTD-ADVOCATE,1159253:146558630,39324.18,Legal Aid - Higher Crime
MINISTRY OF JUSTICE,0290 LAA,2/22/2017,Higher Crime,LEGAL AID FUND,ROBERT E C PAWSON,1159282:146533865,25542.25,Legal Aid - Higher Crime
MINISTRY OF JUSTICE,0290 LAA,2/22/2017,Higher Crime,LEGAL AID FUND,JASON K PITTER,1159288:146533719,29529.24,Legal Aid - Higher Crime
MINISTRY OF JUSTICE,0290 LAA,2/22/2017,Civil Representation,LEGAL AID FUND,SAMANTHA L KING,1159332:3000001135080005,32011.2,Legal Aid - Civil Representation
MINISTRY OF JUSTICE,0290 LAA,2/22/2017,Higher Crime,LEGAL AID FUND,CHARLES A BOTT QC,1159378:146536205,75600,Legal Aid - Higher Crime
MINISTRY OF JUSTICE,0290 LAA,2/22/2017,Higher Crime,LEGAL AID FUND,MARK R HARRIES,1159442:146536204,37800,Legal Aid - Higher Crime
MINISTRY OF JUSTICE,0290 LAA,2/22/2017,Civil Representation,LEGAL AID FUND,CLARE L GARNHAM,1159482:3000000701650020,53568,Legal Aid - Civil Representation
MINISTRY OF JUSTICE,0290 LAA,2/22/2017,Higher Crime,LEGAL AID FUND,RICHARD P SUTTON QC,1159541:146517498,30000.37,Legal Aid - Higher Crime
MINISTRY OF JUSTICE,0290 LAA,2/22/2017,Civil Representation,LEGAL AID FUND,R AELRED HOOKWAY,1159549:3000000703040017,38188.8,Legal Aid - Civil Representation
MINISTRY OF JUSTICE,0290 LAA,2/22/2017,Civil Representation,LEGAL AID FUND,IRWIN MITCHELL LLP,1159743:146488382,46860.58,Legal Aid - Civil Representation
MINISTRY OF JUSTICE,0290 LAA,2/22/2017,Higher Crime,LEGAL AID FUND,UK LAW,1159790:146525758,43453.45,Legal Aid - Higher Crime
MINISTRY OF JUSTICE,0290 LAA,2/22/2017,Higher Crime,LEGAL AID FUND,LOUIS C FRENCH,1159795:146532876,26603.98,Legal Aid - Higher Crime
MINISTRY OF JUSTICE,0290 LAA,2/22/2017,Higher Crime,LEGAL AID FUND,NEIL A HAWES QC,1159814:146563694,75600,Legal Aid - Higher Crime
MINISTRY OF JUSTICE,0290 LAA,2/22/2017,Higher Crime,LEGAL AID FUND,NEIL A HAWES QC,1159814:146563695,75600,Legal Aid - Higher Crime
MINISTRY OF JUSTICE,0290 LAA,2/22/2017,Higher Crime,LEGAL AID FUND,RIAZ SOLICITORS,1159855:146517518,81347.36,Legal Aid - Higher Crime
MINISTRY OF JUSTICE,0290 LAA,2/22/2017,Higher Crime,LEGAL AID FUND,LHD SOLICITORS LTD,1159865:146517728,39177.9,Legal Aid - Higher Crime
MINISTRY OF JUSTICE,0290 LAA,2/22/2017,Higher Crime,LEGAL AID FUND,STERNBERG REED SOLICITORS,1159881:146517450,27305.79,Legal Aid - Higher Crime
MINISTRY OF JUSTICE,0290 LAA,2/22/2017,Higher Crime,LEGAL AID FUND,WALLACE MCNALLY,1159887:146541738,107574.07,Legal Aid - Higher Crime
MINISTRY OF JUSTICE,0290 LAA,2/22/2017,Higher Crime,LEGAL AID FUND,MITCHELLS SOLICITORS LLP,1159891:146526214,76884.61,Legal Aid - Higher Crime
MINISTRY OF JUSTICE,0290 LAA,2/22/2017,Civil Representation,LEGAL AID FUND,WATKINS SOLICITORS,1159895:146529717,25309.18,Legal Aid - Civil Representation
MINISTRY OF JUSTICE,0290 LAA,2/22/2017,Higher Crime,LEGAL AID FUND,LESLIE FRANKS SOLICITORS,1159909:146557584,86211.39,Legal Aid - Higher Crime
MINISTRY OF JUSTICE,0290 LAA,2/22/2017,Higher Crime,LEGAL AID FUND,J D SOLICITORS,1159927:146541073,59109.24,Legal Aid - Higher Crime
MINISTRY OF JUSTICE,0290 LAA,2/22/2017,Higher Crime,LEGAL AID FUND,J D SOLICITORS,1159927:146541681,100953.92,Legal Aid - Higher Crime
MINISTRY OF JUSTICE,0290 LAA,2/22/2017,Higher Crime,LEGAL AID FUND,MANN & CO SOLICITORS,1159947:146559466,35597.46,Legal Aid - Higher Crime
MINISTRY OF JUSTICE,0290 LAA,2/22/2017,Civil Representation,LEGAL AID FUND,GHP LEGAL,1159966:146318188,31837.38,Legal Aid - Civil Representation
MINISTRY OF JUSTICE,0290 LAA,2/22/2017,Higher Crime,LEGAL AID FUND,KAYDERS SOLICITORS,1159968:146533270,26554.26,Legal Aid - Higher Crime
MINISTRY OF JUSTICE,0290 LAA,2/22/2017,Civil Representation,LEGAL AID FUND,MORRISON SPOWART LTD,1159990:146529275,28432.62,Legal Aid - Civil Representation
MINISTRY OF JUSTICE,0290 LAA,2/22/2017,Higher Crime,LEGAL AID FUND,PAUL CROWLEY & CO SOLICITORS LTD,1160009:146533840,43498.26,Legal Aid - Higher Crime
MINISTRY OF JUSTICE,0290 LAA,2/22/2017,Civil Representation,LEGAL AID FUND,ELLIOT MATHER LLP,1160046:3000001079400002,31602.89,Legal Aid - Civil Representation
MINISTRY OF JUSTICE,0290 LAA,2/22/2017,Higher Crime,LEGAL AID FUND,KUNDERT SOLICITORS LLP,1160124:146558814,41809.46,Legal Aid - Higher Crime
MINISTRY OF JUSTICE,0290 LAA,2/22/2017,Higher Crime,LEGAL AID FUND,ROBERT LIZAR,1160133:146557326,43082.1,Legal Aid - Higher Crime
MINISTRY OF JUSTICE,0290 LAA,2/22/2017,Higher Crime,LEGAL AID FUND,PETER CLARKE SOLICITORS LLP,1160170:146559109,33031.13,Legal Aid - Higher Crime
MINISTRY OF JUSTICE,0290 LAA,2/22/2017,Higher Crime,LEGAL AID FUND,DE MAIDS SOLICITORS & ADVOCATES,1160172:146557298,42163.1,Legal Aid - Higher Crime
MINISTRY OF JUSTICE,0290 LAA,2/22/2017,Higher Crime,LEGAL AID FUND,MSB LAW LLP,1160182:146558708,64685.34,Legal Aid - Higher Crime
MINISTRY OF JUSTICE,0290 LAA,2/22/2017,Civil Representation,LEGAL AID FUND,HOPKIN MURRAY BESKINE LTD,1160221:145248413,35445.72,Legal Aid - Civil Representation
MINISTRY OF JUSTICE,0290 LAA,2/22/2017,Civil Representation,LEGAL AID FUND,BLAKE LAPTHORN,1160230:146520547,55495.5,Legal Aid - Civil Representation
MINISTRY OF JUSTICE,0290 LAA,2/22/2017,Higher Crime,LEGAL AID FUND,BLACKFORDS LLP,1160257:146554974,86574.51,Legal Aid - Higher Crime
MINISTRY OF JUSTICE,0290 LAA,2/22/2017,Higher Crime,LEGAL AID FUND,REEDS SOLICITORS LTD,1160330:146521432,31367.81,Legal Aid - Higher Crime
MINISTRY OF JUSTICE,0290 LAA,2/22/2017,Higher Crime,LEGAL AID FUND,ABDUL S IQBAL QC,1160547:146518352,60136.37,Legal Aid - Higher Crime
MINISTRY OF JUSTICE,0290 LAA,2/22/2017,Civil Representation,LEGAL AID FUND,T V EDWARDS LLP,1160636:146536747,30028.54,Legal Aid - Civil Representation
MINISTRY OF JUSTICE,0290 LAA,2/22/2017,Civil Representation,LEGAL AID FUND,ANN L BEATTIE,1160745:146478434,32788.8,Legal Aid - Civil Representation
MINISTRY OF JUSTICE,0290 LAA,2/22/2017,Higher Crime,LEGAL AID FUND,CHRISTOPHER H STABLES,1160902:146565376,71160,Legal Aid - Higher Crime
MINISTRY OF JUSTICE,0290 LAA,2/22/2017,Civil Representation,LEGAL AID FUND,LORNA G MEYER QC,1160919:145052813,40585.86,Legal Aid - Civil Representation
MINISTRY OF JUSTICE,0290 LAA,2/22/2017,Civil Representation,LEGAL AID FUND,LORNA G MEYER QC,1160919:3000000940060025,44906.4,Legal Aid - Civil Representation
MINISTRY OF JUSTICE,0290 LAA,2/22/2017,Civil Representation,LEGAL AID FUND,LORNA G MEYER QC,1160919:3000001208420011,39042,Legal Aid - Civil Representation
MINISTRY OF JUSTICE,0290 LAA,2/22/2017,Civil Representation,LEGAL AID FUND,CHRISTOPHER M D BARNES,1161023:146528918,32642.4,Legal Aid - Civil Representation
MINISTRY OF JUSTICE,0290 LAA,2/22/2017,Higher Crime,LEGAL AID FUND,KULJEET S DOBE,1161131:146540827,26897.11,Legal Aid - Higher Crime
MINISTRY OF JUSTICE,0290 LAA,2/22/2017,Higher Crime,LEGAL AID FUND,RHIANNON SADLER,1161158:146563606,102240,Legal Aid - Higher Crime
MINISTRY OF JUSTICE,0290 LAA,2/22/2017,Higher Crime,LEGAL AID FUND,JOHN MCGUINNESS QC,1161184:146562930,75600,Legal Aid - Higher Crime
MINISTRY OF JUSTICE,0290 LAA,2/22/2017,Higher Crime,LEGAL AID FUND,SIMON STIRLING,1161205:146525432,40951.32,Legal Aid - Higher Crime
MINISTRY OF JUSTICE,0290 LAA,2/22/2017,Civil Representation,LEGAL AID FUND,JUSTINE A LATTIMER,1161211:3000001321540012,33048,Legal Aid - Civil Representation
MINISTRY OF JUSTICE,0290 LAA,2/22/2017,Higher Crime,LEGAL AID FUND,JASON A SUGARMAN,1161246:146562927,37800,Legal Aid - Higher Crime
MINISTRY OF JUSTICE,0290 LAA,2/22/2017,Higher Crime,LEGAL AID FUND,LLOYDS PR SOLICITORS,1161281:146533706,89975.11,Legal Aid - Higher Crime
MINISTRY OF JUSTICE,0290 LAA,2/22/2017,Civil Representation,LEGAL AID FUND,GGP LAW LTD,1161306:146554715,32377.03,Legal Aid - Civil Representation
MINISTRY OF JUSTICE,0290 LAA,2/22/2017,Higher Crime,LEGAL AID FUND,ZMS LEGAL LTD TA ZMS SOLICITORS,1161360:146526052,45706.51,Legal Aid - Higher Crime
MINISTRY OF JUSTICE,0290 LAA,2/22/2017,Civil Representation,LEGAL AID FUND,MORTIMERS SOLICITORS,1161369:146562341,46604.77,Legal Aid - Civil Representation
MINISTRY OF JUSTICE,0290 LAA,2/22/2017,Higher Crime,LEGAL AID FUND,BROOKLYN SOLICITORS LTD,1161375:146557347,33720.4,Legal Aid - Higher Crime
MINISTRY OF JUSTICE,0290 LAA,2/22/2017,Civil Representation,LEGAL AID FUND,TURPIN & MILLER LLP,1161391:146536501,35677.04,Legal Aid - Civil Representation
MINISTRY OF JUSTICE,0290 LAA,2/22/2017,Legal Help,LEGAL AID FUND,THE COMMUNITY LAW PARTNERSHIP LTD,1161394:146529730,28419.66,Legal Aid - Legal Help
MINISTRY OF JUSTICE,0290 LAA,2/22/2017,Civil Representation,LEGAL AID FUND,HOGANS,1161454:146536281,32835.5,Legal Aid - Civil Representation
MINISTRY OF JUSTICE,0290 LAA,2/22/2017,Civil Representation,LEGAL AID FUND,HARRIS TEMPERLEY LLP,1161467:146552640,58942.19,Legal Aid - Civil Representation
MINISTRY OF JUSTICE,0290 LAA,2/22/2017,Higher Crime,LEGAL AID FUND,THE JOHNSON PARTNERSHIP,1161499:146557559,64196.63,Legal Aid - Higher Crime
MINISTRY OF JUSTICE,0290 LAA,2/22/2017,Civil Representation,LEGAL AID FUND,KNOWLES BENNING LLP,1161513:146513981,35484.52,Legal Aid - Civil Representation
MINISTRY OF JUSTICE,0290 LAA,2/22/2017,Higher Crime,LEGAL AID FUND,BIRD & CO SOLICITORS LLP,1161548:146559301,32010,Legal Aid - Higher Crime
MINISTRY OF JUSTICE,0290 LAA,2/22/2017,Civil Representation,LEGAL AID FUND,GCA SOLICITORS,1161552:146520281,30295.12,Legal Aid - Civil Representation
MINISTRY OF JUSTICE,0290 LAA,2/22/2017,Higher Crime,LEGAL AID FUND,LANSBURY WORTHINGTON LTD,1161557:146559500,89975.11,Legal Aid - Higher Crime
MINISTRY OF JUSTICE,0290 LAA,2/22/2017,Higher Crime,LEGAL AID FUND,JANES SOLICITORS,1161605:146533854,69512.56,Legal Aid - Higher Crime
MINISTRY OF JUSTICE,0290 LAA,2/22/2017,Civil Representation,LEGAL AID FUND,SOUTHERN STEWART & WALKER,1161615:3000000102600024,27403.94,Legal Aid - Civil Representation
MINISTRY OF JUSTICE,0290 LAA,2/22/2017,Higher Crime,LEGAL AID FUND,TUCKERS SOLICITORS LLP,1161632:146557274,66746.68,Legal Aid - Higher Crime
MINISTRY OF JUSTICE,0290 LAA,2/22/2017,Higher Crime,LEGAL AID FUND,BARK & CO,1161639:146528312,57506.28,Legal Aid - Higher Crime
MINISTRY OF JUSTICE,0290 LAA,2/22/2017,Civil Representation,LEGAL AID FUND,EDWARD HAYES LLP,1158690:146419355,56193.25,Legal Aid - Civil Representation
MINISTRY OF JUSTICE,0290 LAA,2/22/2017,Civil Representation,LEGAL AID FUND,HARRIS TEMPERLEY LLP,1161467:146552646,52618.64,Legal Aid - Civil Representation
MINISTRY OF JUSTICE,0290 LAA,2/22/2017,Civil Representation,LEGAL AID FUND,DARREN F HOWE QC,1158046:144107756,44604.41,Legal Aid - Civil Representation
MINISTRY OF JUSTICE,0290 LAA,2/22/2017,Higher Crime,LEGAL AID FUND,LHD SOLICITORS LTD,1159865:146541621,36371.57,Legal Aid - Higher Crime
MINISTRY OF JUSTICE,0290 LAA,2/22/2017,Civil Representation,LEGAL AID FUND,MORTIMERS SOLICITORS,1161369:146562348,32130,Legal Aid - Civil Representation
MINISTRY OF JUSTICE,0290 LAA,2/22/2017,Civil Representation,LEGAL AID FUND,JULIE A STATHER,1158303:146527668,29664.57,Legal Aid - Civil Representation
MINISTRY OF JUSTICE,0290 LAA,2/22/2017,Civil Representation,LEGAL AID FUND,BINDMANS LLP,1159932:146552822,26623.83,Legal Aid - Civil Representation
MINISTRY OF JUSTICE,0290 LAA,2/22/2017,Civil Representation,LEGAL AID FUND,WATKINS SOLICITORS,1159895:146529718,25094.18,Legal Aid - Civil Representation
MINISTRY OF JUSTICE,0290 LAA,2/23/2017,Civil Representation,LEGAL AID FUND,ALEXA R STOREY-REA,1161861:146419353,35640,Legal Aid - Civil Representation
Ministry of Justice,0290 LAA,2/24/2017,5219702004-EXP - PURCHASE OF GOODS/SERVICES - OTHER TRAVEL - UK Other,10292001-Financial Management,REDFERN TRAVEL LTD,3219,-47817.17,Travel Costs
Ministry of Justice,0290 LAA,2/24/2017,5219702004-EXP - PURCHASE OF GOODS/SERVICES - OTHER TRAVEL - UK Other,10292001-Financial Management,REDFERN TRAVEL LTD,3219,-39184.65,Travel Costs
Ministry of Justice,0290 LAA,2/24/2017,5219702004-EXP - PURCHASE OF GOODS/SERVICES - OTHER TRAVEL - UK Other,10292001-Financial Management,REDFERN TRAVEL LTD,3219,47867.39,Travel Costs
Ministry of Justice,0290 LAA,2/24/2017,5219702004-EXP - PURCHASE OF GOODS/SERVICES - OTHER TRAVEL - UK Other,10292001-Financial Management,REDFERN TRAVEL LTD,3219,78990.44,Travel Costs
Ministry of Justice,0290 LAA,2/24/2017,5211402002-EXP - PURCHASE OF GOODS/SERVICES - OTHER PROFESSIONAL SERVICES - Legal Services - Third party legal costs,10293343-National Courts Core Team NCT,ROSSENDALES LTD,40067,-114132.01,Collections costs for CCMT
Ministry of Justice,0290 LAA,2/24/2017,5211402002-EXP - PURCHASE OF GOODS/SERVICES - OTHER PROFESSIONAL SERVICES - Legal Services - Third party legal costs,10293343-National Courts Core Team NCT,ROSSENDALES LTD,40068,-66866.1,Enforcement costs for CCMT 
Ministry of Justice,0290 LAA,2/24/2017,5211402002-EXP - PURCHASE OF GOODS/SERVICES - OTHER PROFESSIONAL SERVICES - Legal Services - Third party legal costs,10293343-National Courts Core Team NCT,ROSSENDALES LTD,40067,9314.76,Collections costs for CCMT
Ministry of Justice,0290 LAA,2/24/2017,5211402002-EXP - PURCHASE OF GOODS/SERVICES - OTHER PROFESSIONAL SERVICES - Legal Services - Third party legal costs,10293343-National Courts Core Team NCT,ROSSENDALES LTD,40068,19670,Enforcement costs for CCMT 
Ministry of Justice,0290 LAA,2/24/2017,5211402002-EXP - PURCHASE OF GOODS/SERVICES - OTHER PROFESSIONAL SERVICES - Legal Services - Third party legal costs,10293343-National Courts Core Team NCT,ROSSENDALES LTD,40068,110128.2,Enforcement costs for CCMT 
Ministry of Justice,0290 LAA,2/24/2017,5211402002-EXP - PURCHASE OF GOODS/SERVICES - OTHER PROFESSIONAL SERVICES - Legal Services - Third party legal costs,10293343-National Courts Core Team NCT,ROSSENDALES LTD,40067,217086.31,Collections costs for CCMT
MINISTRY OF JUSTICE,0290 LAA,2/24/2017,Legal Help,LEGAL AID FUND,DH LAW LTD,1161944:146297187,40258.44,Legal Aid - Legal Help
MINISTRY OF JUSTICE,0290 LAA,2/24/2017,Civil Representation,LEGAL AID FUND,ROWBIS SOLICITORS LLP,1161945:146116257,33401.04,Legal Aid - Civil Representation
MINISTRY OF JUSTICE,0290 LAA,2/24/2017,Civil Representation,LEGAL AID FUND,MATTHEW D MAYNARD,1161939:146562345,27310.2,Legal Aid - Civil Representation
MINISTRY OF JUSTICE,0290 LAA,2/27/2017,Higher Crime,LEGAL AID FUND,JMW SOLICITORS LLP,1161949:2000000000002623,43272.57,Legal Aid - Higher Crime
